Department Family,Entity,Date,Expense Type,Expense Area,Supplier,Transaction Number,AP Amount,Description,Supplier Postcode
Department of Health,NHS Sheffield CCG,10/31/2020,C&M-PMS Contract Value,PRC DELEGATED CO-COMMISSIONING,ABBEY LANE SURGERY,34166807,"24,000.32",BABALP,S8 0BJ
Department of Health,NHS Sheffield CCG,10/31/2020,C&M-PMS Funding Differential Review,PRC DELEGATED CO-COMMISSIONING,ABBEY LANE SURGERY,34166807,454.56,ZFUNFP,S8 0BJ
Department of Health,NHS Sheffield CCG,10/31/2020,C&M-PMS PCN DES Participation,PRC DELEGATED CO-COMMISSIONING,ABBEY LANE SURGERY,34166807,900.11,PARTIP,S8 0BJ
Department of Health,NHS Sheffield CCG,10/31/2020,C&M-PMS Prem Notional Rent,PRC DELEGATED CO-COMMISSIONING,ABBEY LANE SURGERY,34166807,"2,166.67",NRENT,S8 0BJ
Department of Health,NHS Sheffield CCG,10/31/2020,C&M-PMS Prem Rates,PRC DELEGATED CO-COMMISSIONING,ABBEY LANE SURGERY,34166807,773.00,RANDRP,S8 0BJ
Department of Health,NHS Sheffield CCG,10/31/2020,C&M-PMS QOF Aspiration,PRC DELEGATED CO-COMMISSIONING,ABBEY LANE SURGERY,34166807,"2,440.19",QUASPP,S8 0BJ
Department of Health,NHS Sheffield CCG,10/31/2020,Cont Care-Physical Disab (65+),CHC ADULT FULLY FUNDED,ABBEYCARE NURSING,34252272,"56,420.62",,S35 9YY
Department of Health,NHS Sheffield CCG,10/31/2020,Computer Software/License,MENTAL HEALTH SERVICES - OTHER,ADVANCED DIGITAL INSTITUTE,34091593,"42,000.00",,BD18 3LA
Department of Health,NHS Sheffield CCG,10/31/2020,External Consultancy Fees,BEREAVEMENT SERVICE,ATTAIN HEALTH MANAGEMENT SERVICES LTD,34341903,"26,910.00",https://nww.einvoice-prod.sbs.nhs.uk:8179/invoicepdf/ffaf3717-ea5f-5f27-86d2-7706a393bba3,WC1V 7HZ
Department of Health,NHS Sheffield CCG,10/31/2020,Hcare Srv Rec Fdtn Trust-Contract Baseline,BEREAVEMENT SERVICE,BARNSLEY HOSPITAL NHS FOUNDATION TRUST,34236819,"2,460,391.00",,S75 2EP
Department of Health,NHS Sheffield CCG,10/31/2020,Hcare Srv Rec Fdtn Trust-Contract Baseline,BEREAVEMENT SERVICE,BARNSLEY HOSPITAL NHS FOUNDATION TRUST,34236820,"895,225.00",,S75 2EP
Department of Health,NHS Sheffield CCG,10/31/2020,Hcare Srv Rec Fdtn Trust-Contract Baseline,ACUTE COMMISSIONING,BARNSLEY HOSPITAL NHS FOUNDATION TRUST,34236827,"131,016.71",,S75 2EP
Department of Health,NHS Sheffield CCG,10/31/2020,C&M-PMS Contract Value,PRC DELEGATED CO-COMMISSIONING,BARNSLEY ROAD SURGERY,34166809,"20,985.95",BABALP,S5 0QJ
Department of Health,NHS Sheffield CCG,10/31/2020,C&M-PMS Funding Differential Review,PRC DELEGATED CO-COMMISSIONING,BARNSLEY ROAD SURGERY,34166809,506.44,ZFUNFP,S5 0QJ
Department of Health,NHS Sheffield CCG,10/31/2020,C&M-PMS PCN DES Participation,PRC DELEGATED CO-COMMISSIONING,BARNSLEY ROAD SURGERY,34166809,788.19,PARTIP,S5 0QJ
Department of Health,NHS Sheffield CCG,10/31/2020,C&M-PMS Prem Notional Rent,PRC DELEGATED CO-COMMISSIONING,BARNSLEY ROAD SURGERY,34166809,"2,652.17",NRENT,S5 0QJ
Department of Health,NHS Sheffield CCG,10/31/2020,C&M-PMS QOF Aspiration,PRC DELEGATED CO-COMMISSIONING,BARNSLEY ROAD SURGERY,34166809,"2,289.13",QUASPP,S5 0QJ
Department of Health,NHS Sheffield CCG,10/31/2020,C&M-GMS Global Sum,PRC DELEGATED CO-COMMISSIONING,BASLOW ROAD & SHOREHAM STREET SURGERIES,34381365,"99,720.37",GSUMG,S17 4DR
Department of Health,NHS Sheffield CCG,10/31/2020,C&M-GMS PCN DES Participation,PRC DELEGATED CO-COMMISSIONING,BASLOW ROAD & SHOREHAM STREET SURGERIES,34381365,"3,968.74",PARTIG,S17 4DR
Department of Health,NHS Sheffield CCG,10/31/2020,C&M-GMS Prem Notional Rent,PRC DELEGATED CO-COMMISSIONING,BASLOW ROAD & SHOREHAM STREET SURGERIES,34381365,"8,222.71",NRENT,S17 4DR
Department of Health,NHS Sheffield CCG,10/31/2020,C&M-GMS Prem Rates,PRC DELEGATED CO-COMMISSIONING,BASLOW ROAD & SHOREHAM STREET SURGERIES,34381365,"1,954.00",RANDR,S17 4DR
Department of Health,NHS Sheffield CCG,10/31/2020,C&M-GMS Prem Water Rates,PRC DELEGATED CO-COMMISSIONING,BASLOW ROAD & SHOREHAM STREET SURGERIES,34381365,189.57,RAMW,S17 4DR
Department of Health,NHS Sheffield CCG,10/31/2020,C&M-GMS QOF Aspiration,PRC DELEGATED CO-COMMISSIONING,BASLOW ROAD & SHOREHAM STREET SURGERIES,34381365,"10,305.33",QUASPG,S17 4DR
Department of Health,NHS Sheffield CCG,10/31/2020,Cont Care-Physical Disab (65+),CHC ADULT FULLY FUNDED,BC SHEFFIELD LTD,34252225,"39,504.08",https://nww.einvoice-prod.sbs.nhs.uk:8179/invoicepdf/2e2e2ed5-84c8-5ee6-8c7f-62efe5ff41ad,S9 2TJ
Department of Health,NHS Sheffield CCG,10/31/2020,C&M-PMS Contract Value,PRC DELEGATED CO-COMMISSIONING,BIRLEY HEALTH CENTRE,34166811,"64,972.79",BABALP,S12 3BP
Department of Health,NHS Sheffield CCG,10/31/2020,C&M-PMS Funding Differential Review,PRC DELEGATED CO-COMMISSIONING,BIRLEY HEALTH CENTRE,34166811,"1,118.40",ZFUNFP,S12 3BP
Department of Health,NHS Sheffield CCG,10/31/2020,C&M-PMS Out of Hours Opt Outs,PRC DELEGATED CO-COMMISSIONING,BIRLEY HEALTH CENTRE,34166811,11.70,APMOOH,S12 3BP
Department of Health,NHS Sheffield CCG,10/31/2020,C&M-PMS PCN DES Participation,PRC DELEGATED CO-COMMISSIONING,BIRLEY HEALTH CENTRE,34166811,"2,447.94",PARTIP,S12 3BP
Department of Health,NHS Sheffield CCG,10/31/2020,C&M-PMS PCO Other,PRC DELEGATED CO-COMMISSIONING,BIRLEY HEALTH CENTRE,34166811,539.80,CQCRP,S12 3BP
Department of Health,NHS Sheffield CCG,10/31/2020,C&M-PMS Prem Notional Rent,PRC DELEGATED CO-COMMISSIONING,BIRLEY HEALTH CENTRE,34166811,"7,600.58",NRENT,S12 3BP
Department of Health,NHS Sheffield CCG,10/31/2020,C&M-PMS Prem Rates,PRC DELEGATED CO-COMMISSIONING,BIRLEY HEALTH CENTRE,34166811,"1,697.00",RANDRP,S12 3BP
Department of Health,NHS Sheffield CCG,10/31/2020,C&M-PMS QOF Aspiration,PRC DELEGATED CO-COMMISSIONING,BIRLEY HEALTH CENTRE,34166811,"6,800.34",QUASPP,S12 3BP
Department of Health,NHS Sheffield CCG,10/31/2020,Cont Care-Physical Disab (<65),CHC ADULT FULLY FUNDED,BONDCARE,34157995,"62,567.45",CHC SCHEDULE OCTOBER 2020 - Chatsworth Grange Nursing Home,NW4 4EF
Department of Health,NHS Sheffield CCG,10/31/2020,C&M-GMS Cost of Drugs -Prescribing,LOCAL ENHANCED SERVICES,BROOMHILL SURGERY,34395293,"2,393.86",DRGP,S10 5BU
Department of Health,NHS Sheffield CCG,10/31/2020,C&M-GMS Global Sum,PRC DELEGATED CO-COMMISSIONING,BROOMHILL SURGERY,34395293,"67,368.43",GSUMG,S10 5BU
Department of Health,NHS Sheffield CCG,10/31/2020,C&M-GMS PCN DES Participation,PRC DELEGATED CO-COMMISSIONING,BROOMHILL SURGERY,34395293,"2,661.46",PARTIG,S10 5BU
Department of Health,NHS Sheffield CCG,10/31/2020,C&M-GMS PCO Locum Sickness,PRC DELEGATED CO-COMMISSIONING,BROOMHILL SURGERY,34395293,"5,497.48",LOCSIG,S10 5BU
Department of Health,NHS Sheffield CCG,10/31/2020,C&M-GMS Prem Cost Rent,PRC DELEGATED CO-COMMISSIONING,BROOMHILL SURGERY,34395293,"2,975.42",COST,S10 5BU
Department of Health,NHS Sheffield CCG,10/31/2020,C&M-GMS Prem Notional Rent,PRC DELEGATED CO-COMMISSIONING,BROOMHILL SURGERY,34395293,"2,612.50",NRENT,S10 5BU
Department of Health,NHS Sheffield CCG,10/31/2020,C&M-GMS Prem Rates,PRC DELEGATED CO-COMMISSIONING,BROOMHILL SURGERY,34395293,"5,631.25",RANDR,S10 5BU
Department of Health,NHS Sheffield CCG,10/31/2020,C&M-GMS Prof Fees Prescribing,PRC DELEGATED CO-COMMISSIONING,BROOMHILL SURGERY,34395293,64.49,DRGPPF,S10 5BU
Department of Health,NHS Sheffield CCG,10/31/2020,C&M-GMS QOF Aspiration,PRC DELEGATED CO-COMMISSIONING,BROOMHILL SURGERY,34395293,"6,610.83",QUASPG,S10 5BU
Department of Health,NHS Sheffield CCG,10/31/2020,C&M-GMS Cost of Drugs -Prescribing,LOCAL ENHANCED SERVICES,BUCHANAN ROAD SURGERY,34381368,485.83,DRGP,S5 8AL
Department of Health,NHS Sheffield CCG,10/31/2020,C&M-GMS Global Sum,PRC DELEGATED CO-COMMISSIONING,BUCHANAN ROAD SURGERY,34381368,"37,028.88",GSUMG,S5 8AL
Department of Health,NHS Sheffield CCG,10/31/2020,C&M-GMS PCN DES Participation,PRC DELEGATED CO-COMMISSIONING,BUCHANAN ROAD SURGERY,34381368,"1,470.69",PARTIG,S5 8AL
Department of Health,NHS Sheffield CCG,10/31/2020,C&M-GMS PCO Locum Adop/Pat/Mat,PRC DELEGATED CO-COMMISSIONING,BUCHANAN ROAD SURGERY,34381368,"7,402.60",LOCADG,S5 8AL
Department of Health,NHS Sheffield CCG,10/31/2020,C&M-GMS PCO Locum Sickness,PRC DELEGATED CO-COMMISSIONING,BUCHANAN ROAD SURGERY,34381368,"7,601.08",LOCSIG,S5 8AL
Department of Health,NHS Sheffield CCG,10/31/2020,C&M-GMS Prem Notional Rent,PRC DELEGATED CO-COMMISSIONING,BUCHANAN ROAD SURGERY,34381368,"2,595.83",NRENT,S5 8AL
Department of Health,NHS Sheffield CCG,10/31/2020,C&M-GMS Prem Rates,PRC DELEGATED CO-COMMISSIONING,BUCHANAN ROAD SURGERY,34381368,"1,283.00",RANDR,S5 8AL
Department of Health,NHS Sheffield CCG,10/31/2020,C&M-GMS Prof Fees Prescribing,PRC DELEGATED CO-COMMISSIONING,BUCHANAN ROAD SURGERY,34381368,34.55,DRGPPF,S5 8AL
Department of Health,NHS Sheffield CCG,10/31/2020,C&M-GMS QOF Aspiration,PRC DELEGATED CO-COMMISSIONING,BUCHANAN ROAD SURGERY,34381368,"4,322.18",QUASPG,S5 8AL
Department of Health,NHS Sheffield CCG,10/31/2020,C&M-PMS GP Statutory Levy,PRC DELEGATED CO-COMMISSIONING,BURNCROSS SURGERY,34166812,-526.09,STATL,S35 1RN
Department of Health,NHS Sheffield CCG,10/31/2020,C&M-PMS PCN DES Participation,PRC DELEGATED CO-COMMISSIONING,BURNCROSS SURGERY,34166812,"-2,282.33",PARTIP,S35 1RN
Department of Health,NHS Sheffield CCG,10/31/2020,C&M-PMS Prem Rates,PRC DELEGATED CO-COMMISSIONING,BURNCROSS SURGERY,34166812,"-4,533.00",RANDRP,S35 1RN
Department of Health,NHS Sheffield CCG,10/31/2020,C&M-PMS Contract Value,PRC DELEGATED CO-COMMISSIONING,BURNCROSS SURGERY,34166813,"122,252.85",BABALP,S35 1RN
Department of Health,NHS Sheffield CCG,10/31/2020,C&M-PMS Funding Differential Review,PRC DELEGATED CO-COMMISSIONING,BURNCROSS SURGERY,34166813,"2,746.32",ZFUNFP,S35 1RN
Department of Health,NHS Sheffield CCG,10/31/2020,C&M-PMS PCN DES Participation,PRC DELEGATED CO-COMMISSIONING,BURNCROSS SURGERY,34166813,"4,568.54",PARTIP,S35 1RN
Department of Health,NHS Sheffield CCG,10/31/2020,C&M-PMS Prem Notional Rent,PRC DELEGATED CO-COMMISSIONING,BURNCROSS SURGERY,34166813,"14,919.67",NRENT,S35 1RN
Department of Health,NHS Sheffield CCG,10/31/2020,C&M-PMS Prem Rates,PRC DELEGATED CO-COMMISSIONING,BURNCROSS SURGERY,34166813,"7,993.89",RANDRP,S35 1RN
Department of Health,NHS Sheffield CCG,10/31/2020,C&M-PMS QOF Aspiration,PRC DELEGATED CO-COMMISSIONING,BURNCROSS SURGERY,34166813,"15,253.36",QUASPP,S35 1RN
Department of Health,NHS Sheffield CCG,10/31/2020,C&M-PMS Contract Value,PRC DELEGATED CO-COMMISSIONING,BURNGREAVE SURGERY,34166815,"58,071.43",BABALP,S3 9DA
Department of Health,NHS Sheffield CCG,10/31/2020,C&M-PMS Funding Differential Review,PRC DELEGATED CO-COMMISSIONING,BURNGREAVE SURGERY,34166815,"1,135.51",ZFUNFP,S3 9DA
Department of Health,NHS Sheffield CCG,10/31/2020,C&M-PMS Out of Hours Opt Outs,PRC DELEGATED CO-COMMISSIONING,BURNGREAVE SURGERY,34166815,32.73,APMOOH,S3 9DA
Department of Health,NHS Sheffield CCG,10/31/2020,C&M-PMS PCN DES Participation,PRC DELEGATED CO-COMMISSIONING,BURNGREAVE SURGERY,34166815,"2,182.17",PARTIP,S3 9DA
Department of Health,NHS Sheffield CCG,10/31/2020,C&M-PMS Prem Notional Rent,PRC DELEGATED CO-COMMISSIONING,BURNGREAVE SURGERY,34166815,"6,622.92",NRENT,S3 9DA
Department of Health,NHS Sheffield CCG,10/31/2020,C&M-PMS Prem Rates,PRC DELEGATED CO-COMMISSIONING,BURNGREAVE SURGERY,34166815,"2,297.00",RANDRP,S3 9DA
Department of Health,NHS Sheffield CCG,10/31/2020,C&M-PMS QOF Aspiration,PRC DELEGATED CO-COMMISSIONING,BURNGREAVE SURGERY,34166815,"5,108.72",QUASPP,S3 9DA
Department of Health,NHS Sheffield CCG,10/31/2020,Other Gen Supplies & Srv,CLINICAL LEADS,CAJA LTD,34341930,"81,600.00",,ST5 5NB
Department of Health,NHS Sheffield CCG,10/31/2020,C&M-GMS Cost of Drugs -Prescribing,LOCAL ENHANCED SERVICES,CARTERKNOWLE & DORE MEDICAL PRACTICE,34381377,"4,503.75",DRGP,S7 2DW
Department of Health,NHS Sheffield CCG,10/31/2020,C&M-GMS Global Sum,PRC DELEGATED CO-COMMISSIONING,CARTERKNOWLE & DORE MEDICAL PRACTICE,34381377,"89,716.31",GSUMG,S7 2DW
Department of Health,NHS Sheffield CCG,10/31/2020,C&M-GMS PCN DES Participation,PRC DELEGATED CO-COMMISSIONING,CARTERKNOWLE & DORE MEDICAL PRACTICE,34381377,"3,484.23",PARTIG,S7 2DW
Department of Health,NHS Sheffield CCG,10/31/2020,C&M-GMS PCO Locum Sickness,PRC DELEGATED CO-COMMISSIONING,CARTERKNOWLE & DORE MEDICAL PRACTICE,34381377,"5,943.45",LOCSIG,S7 2DW
Department of Health,NHS Sheffield CCG,10/31/2020,C&M-GMS Prem Notional Rent,PRC DELEGATED CO-COMMISSIONING,CARTERKNOWLE & DORE MEDICAL PRACTICE,34381377,"7,855.00",NRENT,S7 2DW
Department of Health,NHS Sheffield CCG,10/31/2020,C&M-GMS Prof Fees Prescribing,PRC DELEGATED CO-COMMISSIONING,CARTERKNOWLE & DORE MEDICAL PRACTICE,34381377,276.36,DRGPPF,S7 2DW
Department of Health,NHS Sheffield CCG,10/31/2020,C&M-GMS QOF Aspiration,PRC DELEGATED CO-COMMISSIONING,CARTERKNOWLE & DORE MEDICAL PRACTICE,34381377,"10,268.52",QUASPG,S7 2DW
Department of Health,NHS Sheffield CCG,10/31/2020,C&M-GMS Cost of Drugs -Prescribing,LOCAL ENHANCED SERVICES,CHARNOCK HEALTH PRIMARY CARE CENTRE,34381373,"1,235.05",DRGP,S12 3GH
Department of Health,NHS Sheffield CCG,10/31/2020,C&M-GMS Global Sum,PRC DELEGATED CO-COMMISSIONING,CHARNOCK HEALTH PRIMARY CARE CENTRE,34381373,"44,918.41",GSUMG,S12 3GH
Department of Health,NHS Sheffield CCG,10/31/2020,C&M-GMS PCN DES Participation,PRC DELEGATED CO-COMMISSIONING,CHARNOCK HEALTH PRIMARY CARE CENTRE,34381373,"1,788.42",PARTIG,S12 3GH
Department of Health,NHS Sheffield CCG,10/31/2020,C&M-GMS PCO Other,PRC DELEGATED CO-COMMISSIONING,CHARNOCK HEALTH PRIMARY CARE CENTRE,34381373,371.00,CQCRG,S12 3GH
Department of Health,NHS Sheffield CCG,10/31/2020,C&M-GMS Prem Actual Rent,PRC DELEGATED CO-COMMISSIONING,CHARNOCK HEALTH PRIMARY CARE CENTRE,34381373,"20,100.00",RENT,S12 3GH
Department of Health,NHS Sheffield CCG,10/31/2020,C&M-GMS Prem Notional Rent,PRC DELEGATED CO-COMMISSIONING,CHARNOCK HEALTH PRIMARY CARE CENTRE,34381373,335.00,NRENT,S12 3GH
Department of Health,NHS Sheffield CCG,10/31/2020,C&M-GMS Prem Rates,PRC DELEGATED CO-COMMISSIONING,CHARNOCK HEALTH PRIMARY CARE CENTRE,34381373,"1,572.00",RANDR,S12 3GH
Department of Health,NHS Sheffield CCG,10/31/2020,C&M-GMS Prem Water Rates,PRC DELEGATED CO-COMMISSIONING,CHARNOCK HEALTH PRIMARY CARE CENTRE,34381373,112.94,RAMW,S12 3GH
Department of Health,NHS Sheffield CCG,10/31/2020,C&M-GMS Prof Fees Prescribing,PRC DELEGATED CO-COMMISSIONING,CHARNOCK HEALTH PRIMARY CARE CENTRE,34381373,55.27,DRGPPF,S12 3GH
Department of Health,NHS Sheffield CCG,10/31/2020,C&M-GMS QOF Aspiration,PRC DELEGATED CO-COMMISSIONING,CHARNOCK HEALTH PRIMARY CARE CENTRE,34381373,"4,918.11",QUASPG,S12 3GH
Department of Health,NHS Sheffield CCG,10/31/2020,Cont Care- Prior Year Payments,CHC ADULT FULLY FUNDED,CHC RETRO,34341910,"131,937.50",,S11 9PW
Department of Health,NHS Sheffield CCG,10/31/2020,Hcare Srv Rec Fdtn Trust-Contract Baseline,ACUTE COMMISSIONING,CHESTERFIELD ROYAL HOSPITAL NHS FOUNDATION TRUST,34236828,"369,177.00",,S44 5BL
Department of Health,NHS Sheffield CCG,10/31/2020,C&M-APMS Contract Value,PRC DELEGATED CO-COMMISSIONING,CLOVER CITY PRACTICE,34187745,"30,667.03",APMADD,S9 4QH
Department of Health,NHS Sheffield CCG,10/31/2020,C&M-APMS OOH Opt Outs,PRC DELEGATED CO-COMMISSIONING,CLOVER CITY PRACTICE,34187745,1.31,APMOOA,S9 4QH
Department of Health,NHS Sheffield CCG,10/31/2020,C&M-APMS PCN DES Participation,PRC DELEGATED CO-COMMISSIONING,CLOVER CITY PRACTICE,34187745,563.87,PARTIA,S9 4QH
Department of Health,NHS Sheffield CCG,10/31/2020,C&M-PMS PCN DES Participation,PRC DELEGATED CO-COMMISSIONING,CLOVER CITY PRACTICE,34187745,564.83,PARTIP,S9 4QH
Department of Health,NHS Sheffield CCG,10/31/2020,C&M-PMS PCO Locum Adop/Pat/Mat,PRC DELEGATED CO-COMMISSIONING,CLOVER CITY PRACTICE,34187745,"6,096.11",SICKC,S9 4QH
Department of Health,NHS Sheffield CCG,10/31/2020,C&M-PMS QOF Aspiration,PRC DELEGATED CO-COMMISSIONING,CLOVER CITY PRACTICE,34187745,"1,589.35",QUASPP,S9 4QH
Department of Health,NHS Sheffield CCG,10/31/2020,C&M-APMS Contract Value,PRC DELEGATED CO-COMMISSIONING,CLOVER GROUP PRACTICE,34187741,"132,241.77",APMADD,S9 4QH
Department of Health,NHS Sheffield CCG,10/31/2020,C&M-APMS PCN DES Participation,PRC DELEGATED CO-COMMISSIONING,CLOVER GROUP PRACTICE,34187741,"2,478.23",PARTIA,S9 4QH
Department of Health,NHS Sheffield CCG,10/31/2020,C&M-APMS PCO Locum Sickness,PRC DELEGATED CO-COMMISSIONING,CLOVER GROUP PRACTICE,34187741,"26,169.98",SICKSA,S9 4QH
Department of Health,NHS Sheffield CCG,10/31/2020,C&M-APMS Prem Actual Rent,PRC DELEGATED CO-COMMISSIONING,CLOVER GROUP PRACTICE,34187741,"5,169.68",RENTA,S9 4QH
Department of Health,NHS Sheffield CCG,10/31/2020,C&M-APMS Prem Healthcentre Rent,PRC DELEGATED CO-COMMISSIONING,CLOVER GROUP PRACTICE,34187741,"59,788.21",HEALTA,S9 4QH
Department of Health,NHS Sheffield CCG,10/31/2020,C&M-APMS Prem Notional Rent,PRC DELEGATED CO-COMMISSIONING,CLOVER GROUP PRACTICE,34187741,"2,804.17",NRENTA,S9 4QH
Department of Health,NHS Sheffield CCG,10/31/2020,C&M-PMS Out of Hours Opt Outs,PRC DELEGATED CO-COMMISSIONING,CLOVER GROUP PRACTICE,34187741,23.51,APMOOH,S9 4QH
Department of Health,NHS Sheffield CCG,10/31/2020,C&M-PMS PCN DES Participation,PRC DELEGATED CO-COMMISSIONING,CLOVER GROUP PRACTICE,34187741,"2,482.45",PARTIP,S9 4QH
Department of Health,NHS Sheffield CCG,10/31/2020,C&M-PMS QOF Aspiration,PRC DELEGATED CO-COMMISSIONING,CLOVER GROUP PRACTICE,34187741,"11,362.38",QUASPP,S9 4QH
Department of Health,NHS Sheffield CCG,10/31/2020,C&M-APMS LES Translation Fees,LOCAL ENHANCED SERVICES,CLOVER GROUP PRACTICE,34233925,"65,500.00",MULBERRYQ1 202021,S9 4QH
Department of Health,NHS Sheffield CCG,10/31/2020,Voids and Subsidies,PRC DELEGATED CO-COMMISSIONING,COMMUNITY HEALTH PARTNERSHIPS LTD,34091624,"37,796.72",,M1 5AN
Department of Health,NHS Sheffield CCG,10/31/2020,Voids and Subsidies,RECHARGES NHS PROPERTY SERVICES LTD,COMMUNITY HEALTH PARTNERSHIPS LTD,34091624,"98,041.05",https://nww.einvoice-prod.sbs.nhs.uk:8179/invoicepdf/4dbfec31-f67e-5dbe-890a-48c8312fc8ca,M1 5AN
Department of Health,NHS Sheffield CCG,10/31/2020,Cont Care-Physical Disab (<65),CHC ADULT FULLY FUNDED,COUNTRY COURT CARE LTD,34157959,"38,566.35",CHC SCHEDULE OCTOBER 2020 - Abbey Grange Nursing Home (Country Court Care),S5 6UU
Department of Health,NHS Sheffield CCG,10/31/2020,Cont Care-Physical Disab (<65),CHC ADULT FULLY FUNDED,COUNTRYWIDE CARE HOMES LTD,34157989,"28,726.88",CHC SCHEDULE OCTOBER 2020 - Heeley Bank Care Home (Countrywide),LS12 6DB
Department of Health,NHS Sheffield CCG,10/31/2020,C&M-GMS Cost of Drugs -Prescribing,LOCAL ENHANCED SERVICES,CROOKES PRACTICE,34381382,31.60,DRGP,S10 1GN
Department of Health,NHS Sheffield CCG,10/31/2020,C&M-GMS Global Sum,PRC DELEGATED CO-COMMISSIONING,CROOKES PRACTICE,34381382,"54,947.81",GSUMG,S10 1GN
Department of Health,NHS Sheffield CCG,10/31/2020,C&M-GMS PCN DES Participation,PRC DELEGATED CO-COMMISSIONING,CROOKES PRACTICE,34381382,"2,142.02",PARTIG,S10 1GN
Department of Health,NHS Sheffield CCG,10/31/2020,C&M-GMS PCO Locum Sickness,PRC DELEGATED CO-COMMISSIONING,CROOKES PRACTICE,34381382,"5,477.43",LOCSIG,S10 1GN
Department of Health,NHS Sheffield CCG,10/31/2020,C&M-GMS PCO Other,PRC DELEGATED CO-COMMISSIONING,CROOKES PRACTICE,34381382,527.70,CQCRG,S10 1GN
Department of Health,NHS Sheffield CCG,10/31/2020,C&M-GMS Prem Notional Rent,PRC DELEGATED CO-COMMISSIONING,CROOKES PRACTICE,34381382,"3,874.67",NRENT,S10 1GN
Department of Health,NHS Sheffield CCG,10/31/2020,C&M-GMS Prem Rates,PRC DELEGATED CO-COMMISSIONING,CROOKES PRACTICE,34381382,"1,534.00",RANDR,S10 1GN
Department of Health,NHS Sheffield CCG,10/31/2020,C&M-GMS Prof Fees Prescribing,PRC DELEGATED CO-COMMISSIONING,CROOKES PRACTICE,34381382,27.64,DRGPPF,S10 1GN
Department of Health,NHS Sheffield CCG,10/31/2020,C&M-GMS QOF Aspiration,PRC DELEGATED CO-COMMISSIONING,CROOKES PRACTICE,34381382,"4,910.43",QUASPG,S10 1GN
Department of Health,NHS Sheffield CCG,10/31/2020,C&M-GMS IT Comm Servs -GP Practices,PRIMARY CARE IT,DAISY COMMUNICATIONS LTD,22609712,"43,444.00","GP WI-FI £91,648 incl VAT on completion of delivery of equipment. £51,552 incl VAT on completion of delivery of professional services",BB9 5SR
Department of Health,NHS Sheffield CCG,10/31/2020,C&M-GMS IT Comm Servs -GP Practices,PRIMARY CARE IT,DAISY COMMUNICATIONS LTD,22609712,"8,688.80",http://nww.docserv.wyss.nhs.uk/synergyiim/dist/?val=589738_4869129_20180611122744,BB9 5SR
Department of Health,NHS Sheffield CCG,10/31/2020,C&M-GMS IT Comm Servs -GP Practices,PRIMARY CARE IT,DAISY COMMUNICATIONS LTD,34257579,"-43,444.00","GP WI-FI £91,648 incl VAT on completion of delivery of equipment. £51,552 incl VAT on completion of delivery of professional services",BB9 5SR
Department of Health,NHS Sheffield CCG,10/31/2020,C&M-GMS IT Comm Servs -GP Practices,PRIMARY CARE IT,DAISY COMMUNICATIONS LTD,34331658,"-61,455.99",,BB9 5SR
Department of Health,NHS Sheffield CCG,10/31/2020,C&M-PMS Contract Value,PRC DELEGATED CO-COMMISSIONING,DEEPCAR MEDICAL CENTRE,34166817,"42,020.72",BABALP,S36 2RA
Department of Health,NHS Sheffield CCG,10/31/2020,C&M-PMS Funding Differential Review,PRC DELEGATED CO-COMMISSIONING,DEEPCAR MEDICAL CENTRE,34166817,722.88,ZFUNFP,S36 2RA
Department of Health,NHS Sheffield CCG,10/31/2020,C&M-PMS Out of Hours Opt Outs,PRC DELEGATED CO-COMMISSIONING,DEEPCAR MEDICAL CENTRE,34166817,25.16,APMOOH,S36 2RA
Department of Health,NHS Sheffield CCG,10/31/2020,C&M-PMS PCN DES Participation,PRC DELEGATED CO-COMMISSIONING,DEEPCAR MEDICAL CENTRE,34166817,"1,581.53",PARTIP,S36 2RA
Department of Health,NHS Sheffield CCG,10/31/2020,C&M-PMS Prem Healthcentre Rent,PRC DELEGATED CO-COMMISSIONING,DEEPCAR MEDICAL CENTRE,34166817,"30,655.23",HEALTH,S36 2RA
Department of Health,NHS Sheffield CCG,10/31/2020,C&M-PMS QOF Aspiration,PRC DELEGATED CO-COMMISSIONING,DEEPCAR MEDICAL CENTRE,34166817,"4,079.29",QUASPP,S36 2RA
Department of Health,NHS Sheffield CCG,10/31/2020,C&M-GMS Cost of Drugs -Prescribing,LOCAL ENHANCED SERVICES,DEVONSHIRE GREEN MEDICAL CENTRE,34381385,165.22,DRGP,S3 7SF
Department of Health,NHS Sheffield CCG,10/31/2020,C&M-GMS Global Sum,PRC DELEGATED CO-COMMISSIONING,DEVONSHIRE GREEN MEDICAL CENTRE,34381385,"48,764.06",GSUMG,S3 7SF
Department of Health,NHS Sheffield CCG,10/31/2020,C&M-GMS PCN DES Participation,PRC DELEGATED CO-COMMISSIONING,DEVONSHIRE GREEN MEDICAL CENTRE,34381385,"1,870.42",PARTIG,S3 7SF
Department of Health,NHS Sheffield CCG,10/31/2020,C&M-GMS Prem Notional Rent,PRC DELEGATED CO-COMMISSIONING,DEVONSHIRE GREEN MEDICAL CENTRE,34381385,"5,987.50",NRENT,S3 7SF
Department of Health,NHS Sheffield CCG,10/31/2020,C&M-GMS Prem Rates,PRC DELEGATED CO-COMMISSIONING,DEVONSHIRE GREEN MEDICAL CENTRE,34381385,"1,385.00",RANDR,S3 7SF
Department of Health,NHS Sheffield CCG,10/31/2020,C&M-GMS Prof Fees Prescribing,PRC DELEGATED CO-COMMISSIONING,DEVONSHIRE GREEN MEDICAL CENTRE,34381385,29.94,DRGPPF,S3 7SF
Department of Health,NHS Sheffield CCG,10/31/2020,C&M-GMS QOF Aspiration,PRC DELEGATED CO-COMMISSIONING,DEVONSHIRE GREEN MEDICAL CENTRE,34381385,"4,846.82",QUASPG,S3 7SF
Department of Health,NHS Sheffield CCG,10/31/2020,Hcare Srv Rec Fdtn Trust-Contract Baseline,BEREAVEMENT SERVICE,DONCASTER AND BASSETLAW HOSPITALS NHS FOUNDATION TRUST,34236821,"1,254,998.00",,WF3 1WE
Department of Health,NHS Sheffield CCG,10/31/2020,Hcare Srv Rec Fdtn Trust-Contract Baseline,BEREAVEMENT SERVICE,DONCASTER AND BASSETLAW HOSPITALS NHS FOUNDATION TRUST,34236822,"3,320,665.00",,WF3 1WE
Department of Health,NHS Sheffield CCG,10/31/2020,Hcare Srv Rec Fdtn Trust-Contract Baseline,ACUTE COMMISSIONING,DONCASTER AND BASSETLAW HOSPITALS NHS FOUNDATION TRUST,34236829,"79,729.44",,WF3 1WE
Department of Health,NHS Sheffield CCG,10/31/2020,C&M-PMS Contract Value,PRC DELEGATED CO-COMMISSIONING,DOVERCOURT SURGERY,34166819,"75,292.54",BABALP,S2 5FX
Department of Health,NHS Sheffield CCG,10/31/2020,C&M-PMS Funding Differential Review,PRC DELEGATED CO-COMMISSIONING,DOVERCOURT SURGERY,34166819,"1,158.87",ZFUNFP,S2 5FX
Department of Health,NHS Sheffield CCG,10/31/2020,C&M-PMS Out of Hours Opt Outs,PRC DELEGATED CO-COMMISSIONING,DOVERCOURT SURGERY,34166819,9.88,APMOOH,S2 5FX
Department of Health,NHS Sheffield CCG,10/31/2020,C&M-PMS PCN DES Participation,PRC DELEGATED CO-COMMISSIONING,DOVERCOURT SURGERY,34166819,"2,813.81",PARTIP,S2 5FX
Department of Health,NHS Sheffield CCG,10/31/2020,C&M-PMS PCO Other,PRC DELEGATED CO-COMMISSIONING,DOVERCOURT SURGERY,34166819,542.80,CQCRP,S2 5FX
Department of Health,NHS Sheffield CCG,10/31/2020,C&M-PMS Prem Actual Rent,PRC DELEGATED CO-COMMISSIONING,DOVERCOURT SURGERY,34166819,"12,400.00",RENT,S2 5FX
Department of Health,NHS Sheffield CCG,10/31/2020,C&M-PMS Prem Notional Rent,PRC DELEGATED CO-COMMISSIONING,DOVERCOURT SURGERY,34166819,"1,708.33",NRENT,S2 5FX
Department of Health,NHS Sheffield CCG,10/31/2020,C&M-PMS QOF Aspiration,PRC DELEGATED CO-COMMISSIONING,DOVERCOURT SURGERY,34166819,"7,547.35",QUASPP,S2 5FX
Department of Health,NHS Sheffield CCG,10/31/2020,C&M-PMS Contract Value,PRC DELEGATED CO-COMMISSIONING,DR MEHROTRA & PARTNER,34166821,"25,077.95",BABALP,S9 5DH
Department of Health,NHS Sheffield CCG,10/31/2020,C&M-PMS Funding Differential Review,PRC DELEGATED CO-COMMISSIONING,DR MEHROTRA & PARTNER,34166821,520.47,ZFUNFP,S9 5DH
Department of Health,NHS Sheffield CCG,10/31/2020,C&M-PMS PCN DES Participation,PRC DELEGATED CO-COMMISSIONING,DR MEHROTRA & PARTNER,34166821,945.10,PARTIP,S9 5DH
Department of Health,NHS Sheffield CCG,10/31/2020,C&M-PMS PCO Other,PRC DELEGATED CO-COMMISSIONING,DR MEHROTRA & PARTNER,34166821,226.20,CQCRP,S9 5DH
Department of Health,NHS Sheffield CCG,10/31/2020,C&M-PMS Prem Notional Rent,PRC DELEGATED CO-COMMISSIONING,DR MEHROTRA & PARTNER,34166821,"5,157.29",NRENT,S9 5DH
Department of Health,NHS Sheffield CCG,10/31/2020,C&M-PMS Prem Rates,PRC DELEGATED CO-COMMISSIONING,DR MEHROTRA & PARTNER,34166821,"1,741.00",RANDRP,S9 5DH
Department of Health,NHS Sheffield CCG,10/31/2020,C&M-PMS QOF Aspiration,PRC DELEGATED CO-COMMISSIONING,DR MEHROTRA & PARTNER,34166821,"2,581.66",QUASPP,S9 5DH
Department of Health,NHS Sheffield CCG,10/31/2020,C&M-PMS Contract Value,PRC DELEGATED CO-COMMISSIONING,DR MILNER & PARTNERS,34166823,"77,922.06",BABALP,S6 4JQ
Department of Health,NHS Sheffield CCG,10/31/2020,C&M-PMS Funding Differential Review,PRC DELEGATED CO-COMMISSIONING,DR MILNER & PARTNERS,34166823,"1,377.22",ZFUNFP,S6 4JQ
Department of Health,NHS Sheffield CCG,10/31/2020,C&M-PMS PCN DES Participation,PRC DELEGATED CO-COMMISSIONING,DR MILNER & PARTNERS,34166823,"2,907.56",PARTIP,S6 4JQ
Department of Health,NHS Sheffield CCG,10/31/2020,C&M-PMS Prem Actual Rent,PRC DELEGATED CO-COMMISSIONING,DR MILNER & PARTNERS,34166823,"11,382.00",RENT,S6 4JQ
Department of Health,NHS Sheffield CCG,10/31/2020,C&M-PMS Prem Notional Rent,PRC DELEGATED CO-COMMISSIONING,DR MILNER & PARTNERS,34166823,"4,462.42",NRENT,S6 4JQ
Department of Health,NHS Sheffield CCG,10/31/2020,C&M-PMS Prem Rates,PRC DELEGATED CO-COMMISSIONING,DR MILNER & PARTNERS,34166823,"2,766.00",RANDRP,S6 4JQ
Department of Health,NHS Sheffield CCG,10/31/2020,C&M-PMS Prem Water Rates,PRC DELEGATED CO-COMMISSIONING,DR MILNER & PARTNERS,34166823,433.18,RAMWP,S6 4JQ
Department of Health,NHS Sheffield CCG,10/31/2020,C&M-PMS QOF Aspiration,PRC DELEGATED CO-COMMISSIONING,DR MILNER & PARTNERS,34166823,"6,594.77",QUASPP,S6 4JQ
Department of Health,NHS Sheffield CCG,10/31/2020,C&M-GMS Cost of Drugs -Prescribing,LOCAL ENHANCED SERVICES,DUKE MEDICAL CENTRE,34381393,714.79,DRGP,S2 2TD
Department of Health,NHS Sheffield CCG,10/31/2020,C&M-GMS Global Sum,PRC DELEGATED CO-COMMISSIONING,DUKE MEDICAL CENTRE,34381393,"62,202.34",GSUMG,S2 2TD
Department of Health,NHS Sheffield CCG,10/31/2020,C&M-GMS PCN DES Participation,PRC DELEGATED CO-COMMISSIONING,DUKE MEDICAL CENTRE,34381393,"2,313.14",PARTIG,S2 2TD
Department of Health,NHS Sheffield CCG,10/31/2020,C&M-GMS Prem Notional Rent,PRC DELEGATED CO-COMMISSIONING,DUKE MEDICAL CENTRE,34381393,"5,721.67",NRENT,S2 2TD
Department of Health,NHS Sheffield CCG,10/31/2020,C&M-GMS Prof Fees Prescribing,PRC DELEGATED CO-COMMISSIONING,DUKE MEDICAL CENTRE,34381393,195.75,DRGPPF,S2 2TD
Department of Health,NHS Sheffield CCG,10/31/2020,C&M-GMS QOF Aspiration,PRC DELEGATED CO-COMMISSIONING,DUKE MEDICAL CENTRE,34381393,"5,286.81",QUASPG,S2 2TD
Department of Health,NHS Sheffield CCG,10/31/2020,C&M-PMS Contract Value,PRC DELEGATED CO-COMMISSIONING,DUNNINC ROAD SURGERY,34166825,"21,770.95",BABALP,S5 0AE
Department of Health,NHS Sheffield CCG,10/31/2020,C&M-PMS Funding Differential Review,PRC DELEGATED CO-COMMISSIONING,DUNNINC ROAD SURGERY,34166825,506.77,ZFUNFP,S5 0AE
Department of Health,NHS Sheffield CCG,10/31/2020,C&M-PMS PCN DES Participation,PRC DELEGATED CO-COMMISSIONING,DUNNINC ROAD SURGERY,34166825,817.62,PARTIP,S5 0AE
Department of Health,NHS Sheffield CCG,10/31/2020,C&M-PMS Prem Notional Rent,PRC DELEGATED CO-COMMISSIONING,DUNNINC ROAD SURGERY,34166825,"1,695.83",NRENT,S5 0AE
Department of Health,NHS Sheffield CCG,10/31/2020,C&M-PMS QOF Aspiration,PRC DELEGATED CO-COMMISSIONING,DUNNINC ROAD SURGERY,34166825,"1,748.41",QUASPP,S5 0AE
Department of Health,NHS Sheffield CCG,10/31/2020,C&M-PMS Contract Value,PRC DELEGATED CO-COMMISSIONING,DYKES HALL MEDICAL CENTRE,34166826,-564.76,BABALP,S6 4GQ
Department of Health,NHS Sheffield CCG,10/31/2020,C&M-PMS DES Extended Hours Access,PRC DELEGATED CO-COMMISSIONING,DYKES HALL MEDICAL CENTRE,34166826,"-4,338.04",EXTHDP,S6 4GQ
Department of Health,NHS Sheffield CCG,10/31/2020,C&M-PMS GP Statutory Levy,PRC DELEGATED CO-COMMISSIONING,DYKES HALL MEDICAL CENTRE,34166826,-331.24,STATL,S6 4GQ
Department of Health,NHS Sheffield CCG,10/31/2020,C&M-PMS Out of Hours Opt Outs,PRC DELEGATED CO-COMMISSIONING,DYKES HALL MEDICAL CENTRE,34166826,"-3,434.95",APMOOH,S6 4GQ
Department of Health,NHS Sheffield CCG,10/31/2020,C&M-PMS PCN DES Clinical Director,PRC DELEGATED CO-COMMISSIONING,DYKES HALL MEDICAL CENTRE,34166826,"-2,160.04",CLINDP,S6 4GQ
Department of Health,NHS Sheffield CCG,10/31/2020,C&M-PMS PCN DES PCN support,LOCAL ENHANCED SERVICES,DYKES HALL MEDICAL CENTRE,34166826,"-4,487.63",PCNSUP,S6 4GQ
Department of Health,NHS Sheffield CCG,10/31/2020,C&M-PMS PCN DES Participation,PRC DELEGATED CO-COMMISSIONING,DYKES HALL MEDICAL CENTRE,34166826,"-1,355.09",PARTIP,S6 4GQ
Department of Health,NHS Sheffield CCG,10/31/2020,C&M-PMS Contract Value,PRC DELEGATED CO-COMMISSIONING,DYKES HALL MEDICAL CENTRE,34166827,"72,160.96",BABALP,S6 4GQ
Department of Health,NHS Sheffield CCG,10/31/2020,C&M-PMS DES Extended Hours Access,PRC DELEGATED CO-COMMISSIONING,DYKES HALL MEDICAL CENTRE,34166827,"8,682.06",EXTHDP,S6 4GQ
Department of Health,NHS Sheffield CCG,10/31/2020,C&M-PMS Funding Differential Review,PRC DELEGATED CO-COMMISSIONING,DYKES HALL MEDICAL CENTRE,34166827,"1,473.36",ZFUNFP,S6 4GQ
Department of Health,NHS Sheffield CCG,10/31/2020,C&M-PMS Out of Hours Opt Outs,PRC DELEGATED CO-COMMISSIONING,DYKES HALL MEDICAL CENTRE,34166827,26.43,APMOOH,S6 4GQ
Department of Health,NHS Sheffield CCG,10/31/2020,C&M-PMS PCN DES Clinical Director,PRC DELEGATED CO-COMMISSIONING,DYKES HALL MEDICAL CENTRE,34166827,"4,314.10",CLINDP,S6 4GQ
Department of Health,NHS Sheffield CCG,10/31/2020,C&M-PMS PCN DES PCN support,LOCAL ENHANCED SERVICES,DYKES HALL MEDICAL CENTRE,34166827,"8,975.26",PCNSUP,S6 4GQ
Department of Health,NHS Sheffield CCG,10/31/2020,C&M-PMS PCN DES Participation,PRC DELEGATED CO-COMMISSIONING,DYKES HALL MEDICAL CENTRE,34166827,"2,712.49",PARTIP,S6 4GQ
Department of Health,NHS Sheffield CCG,10/31/2020,C&M-PMS Prem Notional Rent,PRC DELEGATED CO-COMMISSIONING,DYKES HALL MEDICAL CENTRE,34166827,"5,377.08",NRENT,S6 4GQ
Department of Health,NHS Sheffield CCG,10/31/2020,C&M-PMS Prem Rates,PRC DELEGATED CO-COMMISSIONING,DYKES HALL MEDICAL CENTRE,34166827,"1,366.00",RANDRP,S6 4GQ
Department of Health,NHS Sheffield CCG,10/31/2020,C&M-PMS QOF Aspiration,PRC DELEGATED CO-COMMISSIONING,DYKES HALL MEDICAL CENTRE,34166827,"8,087.38",QUASPP,S6 4GQ
Department of Health,NHS Sheffield CCG,10/31/2020,C&M-PMS Contract Value,PRC DELEGATED CO-COMMISSIONING,EAST BANK MEDICAL CENTRE,34166829,"50,029.48",BABALP,S2 2AG
Department of Health,NHS Sheffield CCG,10/31/2020,C&M-PMS Funding Differential Review,PRC DELEGATED CO-COMMISSIONING,EAST BANK MEDICAL CENTRE,34166829,771.92,ZFUNFP,S2 2AG
Department of Health,NHS Sheffield CCG,10/31/2020,C&M-PMS PCN DES Participation,PRC DELEGATED CO-COMMISSIONING,EAST BANK MEDICAL CENTRE,34166829,"1,875.96",PARTIP,S2 2AG
Department of Health,NHS Sheffield CCG,10/31/2020,C&M-PMS Prem Notional Rent,PRC DELEGATED CO-COMMISSIONING,EAST BANK MEDICAL CENTRE,34166829,"10,583.33",NRENT,S2 2AG
Department of Health,NHS Sheffield CCG,10/31/2020,C&M-PMS Prem Rates,PRC DELEGATED CO-COMMISSIONING,EAST BANK MEDICAL CENTRE,34166829,"2,944.00",RANDRP,S2 2AG
Department of Health,NHS Sheffield CCG,10/31/2020,C&M-PMS QOF Aspiration,PRC DELEGATED CO-COMMISSIONING,EAST BANK MEDICAL CENTRE,34166829,"5,136.41",QUASPP,S2 2AG
Department of Health,NHS Sheffield CCG,10/31/2020,C&M-GMS DES Extended Hours Access,PRC DELEGATED CO-COMMISSIONING,ECCLESFIELD GROUP PRACTICE,34381388,"-5,160.79",EXTHDG,S35 9XQ
Department of Health,NHS Sheffield CCG,10/31/2020,C&M-GMS GP Statutory Levy,PRC DELEGATED CO-COMMISSIONING,ECCLESFIELD GROUP PRACTICE,34381388,-302.96,STATL,S35 9XQ
Department of Health,NHS Sheffield CCG,10/31/2020,C&M-GMS PCN DES Clinical Director,PRC DELEGATED CO-COMMISSIONING,ECCLESFIELD GROUP PRACTICE,34381388,"-2,569.72",CLINDG,S35 9XQ
Department of Health,NHS Sheffield CCG,10/31/2020,C&M-GMS PCN DES PCN support,LOCAL ENHANCED SERVICES,ECCLESFIELD GROUP PRACTICE,34381388,"-5,338.75",PCNSUG,S35 9XQ
Department of Health,NHS Sheffield CCG,10/31/2020,C&M-GMS PCN DES Participation,PRC DELEGATED CO-COMMISSIONING,ECCLESFIELD GROUP PRACTICE,34381388,"-1,438.45",PARTIG,S35 9XQ
Department of Health,NHS Sheffield CCG,10/31/2020,C&M-GMS Cost of Drugs -Prescribing,LOCAL ENHANCED SERVICES,ECCLESFIELD GROUP PRACTICE,34381389,"1,784.51",DRGP,S35 9XQ
Department of Health,NHS Sheffield CCG,10/31/2020,C&M-GMS DES Extended Hours Access,PRC DELEGATED CO-COMMISSIONING,ECCLESFIELD GROUP PRACTICE,34381389,"10,328.70",EXTHDG,S35 9XQ
Department of Health,NHS Sheffield CCG,10/31/2020,C&M-GMS Global Sum,PRC DELEGATED CO-COMMISSIONING,ECCLESFIELD GROUP PRACTICE,34381389,"73,576.35",GSUMG,S35 9XQ
Department of Health,NHS Sheffield CCG,10/31/2020,C&M-GMS PCN DES Clinical Director,PRC DELEGATED CO-COMMISSIONING,ECCLESFIELD GROUP PRACTICE,34381389,"5,132.32",CLINDG,S35 9XQ
Department of Health,NHS Sheffield CCG,10/31/2020,C&M-GMS PCN DES PCN support,LOCAL ENHANCED SERVICES,ECCLESFIELD GROUP PRACTICE,34381389,"10,677.50",PCNSUG,S35 9XQ
Department of Health,NHS Sheffield CCG,10/31/2020,C&M-GMS PCN DES Participation,PRC DELEGATED CO-COMMISSIONING,ECCLESFIELD GROUP PRACTICE,34381389,"2,879.35",PARTIG,S35 9XQ
Department of Health,NHS Sheffield CCG,10/31/2020,C&M-GMS PCO Locum Sickness,PRC DELEGATED CO-COMMISSIONING,ECCLESFIELD GROUP PRACTICE,34381389,"12,307.07",LOCSIG,S35 9XQ
Department of Health,NHS Sheffield CCG,10/31/2020,C&M-GMS Prem Notional Rent,PRC DELEGATED CO-COMMISSIONING,ECCLESFIELD GROUP PRACTICE,34381389,"6,805.42",NRENT,S35 9XQ
Department of Health,NHS Sheffield CCG,10/31/2020,C&M-GMS Prem Rates,PRC DELEGATED CO-COMMISSIONING,ECCLESFIELD GROUP PRACTICE,34381389,551.00,RANDR,S35 9XQ
Department of Health,NHS Sheffield CCG,10/31/2020,C&M-GMS Prof Fees Prescribing,PRC DELEGATED CO-COMMISSIONING,ECCLESFIELD GROUP PRACTICE,34381389,184.24,DRGPPF,S35 9XQ
Department of Health,NHS Sheffield CCG,10/31/2020,C&M-GMS QOF Aspiration,PRC DELEGATED CO-COMMISSIONING,ECCLESFIELD GROUP PRACTICE,34381389,"9,221.39",QUASPG,S35 9XQ
Department of Health,NHS Sheffield CCG,10/31/2020,C&M-GMS Cost of Drugs -Prescribing,LOCAL ENHANCED SERVICES,ELM LANE SURGERY,34381391,"1,634.13",DRGP,S5 7TW
Department of Health,NHS Sheffield CCG,10/31/2020,C&M-GMS Global Sum,PRC DELEGATED CO-COMMISSIONING,ELM LANE SURGERY,34381391,"43,452.53",GSUMG,S5 7TW
Department of Health,NHS Sheffield CCG,10/31/2020,C&M-GMS PCN DES Participation,PRC DELEGATED CO-COMMISSIONING,ELM LANE SURGERY,34381391,"1,703.93",PARTIG,S5 7TW
Department of Health,NHS Sheffield CCG,10/31/2020,C&M-GMS Prem Notional Rent,PRC DELEGATED CO-COMMISSIONING,ELM LANE SURGERY,34381391,"5,343.00",NRENT,S5 7TW
Department of Health,NHS Sheffield CCG,10/31/2020,C&M-GMS Prem Rates,PRC DELEGATED CO-COMMISSIONING,ELM LANE SURGERY,34381391,"1,527.00",RANDR,S5 7TW
Department of Health,NHS Sheffield CCG,10/31/2020,C&M-GMS Prof Fees Prescribing,PRC DELEGATED CO-COMMISSIONING,ELM LANE SURGERY,34381391,142.79,DRGPPF,S5 7TW
Department of Health,NHS Sheffield CCG,10/31/2020,C&M-GMS QOF Aspiration,PRC DELEGATED CO-COMMISSIONING,ELM LANE SURGERY,34381391,"4,787.76",QUASPG,S5 7TW
Department of Health,NHS Sheffield CCG,10/31/2020,Cont Care-Physical Disab (<65),CHC ADULT FULLY FUNDED,FAIRWINDS HEALTH CARE LTD,34157966,"40,311.92",CHC SCHEDULE OCTOBER 2020 - Fairwinds Nursing Home,S61 1AJ
Department of Health,NHS Sheffield CCG,10/31/2020,C&M-PMS Contract Value,PRC DELEGATED CO-COMMISSIONING,FALKLAND HOUSE,34166833,"26,507.00",BABALP,S11 7PL
Department of Health,NHS Sheffield CCG,10/31/2020,C&M-PMS Funding Differential Review,PRC DELEGATED CO-COMMISSIONING,FALKLAND HOUSE,34166833,358.89,ZFUNFP,S11 7PL
Department of Health,NHS Sheffield CCG,10/31/2020,C&M-PMS Out of Hours Opt Outs,PRC DELEGATED CO-COMMISSIONING,FALKLAND HOUSE,34166833,8.04,APMOOH,S11 7PL
Department of Health,NHS Sheffield CCG,10/31/2020,C&M-PMS PCN DES Participation,PRC DELEGATED CO-COMMISSIONING,FALKLAND HOUSE,34166833,994.89,PARTIP,S11 7PL
Department of Health,NHS Sheffield CCG,10/31/2020,C&M-PMS PCO Other,PRC DELEGATED CO-COMMISSIONING,FALKLAND HOUSE,34166833,276.50,CQCRP,S11 7PL
Department of Health,NHS Sheffield CCG,10/31/2020,C&M-PMS Prem Notional Rent,PRC DELEGATED CO-COMMISSIONING,FALKLAND HOUSE,34166833,"1,866.67",NRENT,S11 7PL
Department of Health,NHS Sheffield CCG,10/31/2020,C&M-PMS Prem Rates,PRC DELEGATED CO-COMMISSIONING,FALKLAND HOUSE,34166833,786.00,RANDRP,S11 7PL
Department of Health,NHS Sheffield CCG,10/31/2020,C&M-PMS QOF Aspiration,PRC DELEGATED CO-COMMISSIONING,FALKLAND HOUSE,34166833,"2,962.47",QUASPP,S11 7PL
Department of Health,NHS Sheffield CCG,10/31/2020,C&M-GMS Cost of Drugs -Prescribing,LOCAL ENHANCED SERVICES,FAR LANE MEDICAL CENTRE,34381400,128.24,DRGP,S6 4FA
Department of Health,NHS Sheffield CCG,10/31/2020,C&M-GMS Global Sum,PRC DELEGATED CO-COMMISSIONING,FAR LANE MEDICAL CENTRE,34381400,"57,915.48",GSUMG,S6 4FA
Department of Health,NHS Sheffield CCG,10/31/2020,C&M-GMS PCN DES Participation,PRC DELEGATED CO-COMMISSIONING,FAR LANE MEDICAL CENTRE,34381400,"2,277.76",PARTIG,S6 4FA
Department of Health,NHS Sheffield CCG,10/31/2020,C&M-GMS PCO Other,PRC DELEGATED CO-COMMISSIONING,FAR LANE MEDICAL CENTRE,34381400,460.10,CQCRG,S6 4FA
Department of Health,NHS Sheffield CCG,10/31/2020,C&M-GMS Prem Notional Rent,PRC DELEGATED CO-COMMISSIONING,FAR LANE MEDICAL CENTRE,34381400,"3,504.17",NRENT,S6 4FA
Department of Health,NHS Sheffield CCG,10/31/2020,C&M-GMS Prem Rates,PRC DELEGATED CO-COMMISSIONING,FAR LANE MEDICAL CENTRE,34381400,"1,277.00",RANDR,S6 4FA
Department of Health,NHS Sheffield CCG,10/31/2020,C&M-GMS Prem Water Rates,PRC DELEGATED CO-COMMISSIONING,FAR LANE MEDICAL CENTRE,34381400,101.56,RAMW,S6 4FA
Department of Health,NHS Sheffield CCG,10/31/2020,C&M-GMS Prof Fees Prescribing,PRC DELEGATED CO-COMMISSIONING,FAR LANE MEDICAL CENTRE,34381400,18.43,DRGPPF,S6 4FA
Department of Health,NHS Sheffield CCG,10/31/2020,C&M-GMS QOF Aspiration,PRC DELEGATED CO-COMMISSIONING,FAR LANE MEDICAL CENTRE,34381400,"6,055.38",QUASPG,S6 4FA
Department of Health,NHS Sheffield CCG,10/31/2020,C&M-PMS Contract Value,PRC DELEGATED CO-COMMISSIONING,FIRTH PARK SURGERY,34166831,"77,433.06",BABALP,S5 6HH
Department of Health,NHS Sheffield CCG,10/31/2020,C&M-PMS Out of Hours Opt Outs,PRC DELEGATED CO-COMMISSIONING,FIRTH PARK SURGERY,34166831,7.50,APMOOH,S5 6HH
Department of Health,NHS Sheffield CCG,10/31/2020,C&M-PMS PCN DES Participation,PRC DELEGATED CO-COMMISSIONING,FIRTH PARK SURGERY,34166831,"2,909.44",PARTIP,S5 6HH
Department of Health,NHS Sheffield CCG,10/31/2020,C&M-PMS Prem Notional Rent,PRC DELEGATED CO-COMMISSIONING,FIRTH PARK SURGERY,34166831,"4,500.00",NRENT,S5 6HH
Department of Health,NHS Sheffield CCG,10/31/2020,C&M-PMS Prem Rates,PRC DELEGATED CO-COMMISSIONING,FIRTH PARK SURGERY,34166831,"1,844.00",RANDRP,S5 6HH
Department of Health,NHS Sheffield CCG,10/31/2020,C&M-PMS Prem Water Rates,PRC DELEGATED CO-COMMISSIONING,FIRTH PARK SURGERY,34166831,294.62,RAMWP,S5 6HH
Department of Health,NHS Sheffield CCG,10/31/2020,C&M-PMS QOF Aspiration,PRC DELEGATED CO-COMMISSIONING,FIRTH PARK SURGERY,34166831,"7,425.15",QUASPP,S5 6HH
Department of Health,NHS Sheffield CCG,10/31/2020,C&M-PMS Contract Value,PRC DELEGATED CO-COMMISSIONING,FORGE HEALTH GROUP,34166879,-784.29,BABALP,S3 9DL
Department of Health,NHS Sheffield CCG,10/31/2020,C&M-PMS DES Extended Hours Access,PRC DELEGATED CO-COMMISSIONING,FORGE HEALTH GROUP,34166879,"-6,849.44",EXTHDP,S3 9DL
Department of Health,NHS Sheffield CCG,10/31/2020,C&M-PMS GP Statutory Levy,PRC DELEGATED CO-COMMISSIONING,FORGE HEALTH GROUP,34166879,-516.43,STATL,S3 9DL
Department of Health,NHS Sheffield CCG,10/31/2020,C&M-PMS Out of Hours Opt Outs,PRC DELEGATED CO-COMMISSIONING,FORGE HEALTH GROUP,34166879,"-5,849.43",APMOOH,S3 9DL
Department of Health,NHS Sheffield CCG,10/31/2020,C&M-PMS PCN DES Clinical Director,PRC DELEGATED CO-COMMISSIONING,FORGE HEALTH GROUP,34166879,"-3,410.55",CLINDP,S3 9DL
Department of Health,NHS Sheffield CCG,10/31/2020,C&M-PMS PCN DES PCN support,LOCAL ENHANCED SERVICES,FORGE HEALTH GROUP,34166879,"-7,085.63",PCNSUP,S3 9DL
Department of Health,NHS Sheffield CCG,10/31/2020,C&M-PMS PCN DES Participation,PRC DELEGATED CO-COMMISSIONING,FORGE HEALTH GROUP,34166879,"-2,286.18",PARTIP,S3 9DL
Department of Health,NHS Sheffield CCG,10/31/2020,C&M-PMS Prem Notional Rent,PRC DELEGATED CO-COMMISSIONING,FORGE HEALTH GROUP,34166879,"-1,589.77",NRENT,S3 9DL
Department of Health,NHS Sheffield CCG,10/31/2020,C&M-PMS Contract Value,PRC DELEGATED CO-COMMISSIONING,FORGE HEALTH GROUP,34166880,"123,040.99",BABALP,S3 9DL
Department of Health,NHS Sheffield CCG,10/31/2020,C&M-PMS DES Extended Hours Access,PRC DELEGATED CO-COMMISSIONING,FORGE HEALTH GROUP,34166880,"13,708.33",EXTHDP,S3 9DL
Department of Health,NHS Sheffield CCG,10/31/2020,C&M-PMS Funding Differential Review,PRC DELEGATED CO-COMMISSIONING,FORGE HEALTH GROUP,34166880,"1,206.61",ZFUNFP,S3 9DL
Department of Health,NHS Sheffield CCG,10/31/2020,C&M-PMS Out of Hours Opt Outs,PRC DELEGATED CO-COMMISSIONING,FORGE HEALTH GROUP,34166880,37.43,APMOOH,S3 9DL
Department of Health,NHS Sheffield CCG,10/31/2020,C&M-PMS PCN DES Clinical Director,PRC DELEGATED CO-COMMISSIONING,FORGE HEALTH GROUP,34166880,"6,811.65",CLINDP,S3 9DL
Department of Health,NHS Sheffield CCG,10/31/2020,C&M-PMS PCN DES PCN support,LOCAL ENHANCED SERVICES,FORGE HEALTH GROUP,34166880,"14,171.26",PCNSUP,S3 9DL
Department of Health,NHS Sheffield CCG,10/31/2020,C&M-PMS PCN DES Participation,PRC DELEGATED CO-COMMISSIONING,FORGE HEALTH GROUP,34166880,"4,576.26",PARTIP,S3 9DL
Department of Health,NHS Sheffield CCG,10/31/2020,C&M-PMS Prem Healthcentre Rent,PRC DELEGATED CO-COMMISSIONING,FORGE HEALTH GROUP,34166880,"35,472.33",HEALTH,S3 9DL
Department of Health,NHS Sheffield CCG,10/31/2020,C&M-PMS Prem Notional Rent,PRC DELEGATED CO-COMMISSIONING,FORGE HEALTH GROUP,34166880,"9,650.00",NRENT,S3 9DL
Department of Health,NHS Sheffield CCG,10/31/2020,C&M-PMS Prem Rates,PRC DELEGATED CO-COMMISSIONING,FORGE HEALTH GROUP,34166880,"2,370.00",RANDRP,S3 9DL
Department of Health,NHS Sheffield CCG,10/31/2020,C&M-PMS QOF Aspiration,PRC DELEGATED CO-COMMISSIONING,FORGE HEALTH GROUP,34166880,"11,197.01",QUASPP,S3 9DL
Department of Health,NHS Sheffield CCG,10/31/2020,Cont Care-Physical Disab (<65),CHC ADULT FULLY FUNDED,FOUR SEASONS HEALTH CARE LTD,34157961,"36,258.71",CHC SCHEDULE OCTOBER 2020 - Balmoral Nursing Home (Four Seasons HC),DL1 1RW
Department of Health,NHS Sheffield CCG,10/31/2020,C&M-PMS Contract Value,PRC DELEGATED CO-COMMISSIONING,FOXHILL MEDICAL CENTRE SHEFFIELD,34166878,"52,261.18",BABALP,S6 1GA
Department of Health,NHS Sheffield CCG,10/31/2020,C&M-PMS Funding Differential Review,PRC DELEGATED CO-COMMISSIONING,FOXHILL MEDICAL CENTRE SHEFFIELD,34166878,"1,157.94",ZFUNFP,S6 1GA
Department of Health,NHS Sheffield CCG,10/31/2020,C&M-PMS Out of Hours Opt Outs,PRC DELEGATED CO-COMMISSIONING,FOXHILL MEDICAL CENTRE SHEFFIELD,34166878,20.41,APMOOH,S6 1GA
Department of Health,NHS Sheffield CCG,10/31/2020,C&M-PMS PCN DES Participation,PRC DELEGATED CO-COMMISSIONING,FOXHILL MEDICAL CENTRE SHEFFIELD,34166878,"1,963.57",PARTIP,S6 1GA
Department of Health,NHS Sheffield CCG,10/31/2020,C&M-PMS PCO Locum Adop/Pat/Mat,PRC DELEGATED CO-COMMISSIONING,FOXHILL MEDICAL CENTRE SHEFFIELD,34166878,"7,006.08",SICKC,S6 1GA
Department of Health,NHS Sheffield CCG,10/31/2020,C&M-PMS PCO Other,PRC DELEGATED CO-COMMISSIONING,FOXHILL MEDICAL CENTRE SHEFFIELD,34166878,400.50,CQCRP,S6 1GA
Department of Health,NHS Sheffield CCG,10/31/2020,C&M-PMS Prem Healthcentre Rent,PRC DELEGATED CO-COMMISSIONING,FOXHILL MEDICAL CENTRE SHEFFIELD,34166878,"47,880.58",HEALTH,S6 1GA
Department of Health,NHS Sheffield CCG,10/31/2020,C&M-PMS QOF Aspiration,PRC DELEGATED CO-COMMISSIONING,FOXHILL MEDICAL CENTRE SHEFFIELD,34166878,"5,429.40",QUASPP,S6 1GA
Department of Health,NHS Sheffield CCG,10/31/2020,C&M-PMS Contract Value,PRC DELEGATED CO-COMMISSIONING,GLEADLESS MEDICAL CENTRE,34166835,"70,031.27",BABALP,S14 1PQ
Department of Health,NHS Sheffield CCG,10/31/2020,C&M-PMS Funding Differential Review,PRC DELEGATED CO-COMMISSIONING,GLEADLESS MEDICAL CENTRE,34166835,"1,547.97",ZFUNFP,S14 1PQ
Department of Health,NHS Sheffield CCG,10/31/2020,C&M-PMS Out of Hours Opt Outs,PRC DELEGATED CO-COMMISSIONING,GLEADLESS MEDICAL CENTRE,34166835,33.34,APMOOH,S14 1PQ
Department of Health,NHS Sheffield CCG,10/31/2020,C&M-PMS PCN DES Participation,PRC DELEGATED CO-COMMISSIONING,GLEADLESS MEDICAL CENTRE,34166835,"2,632.76",PARTIP,S14 1PQ
Department of Health,NHS Sheffield CCG,10/31/2020,C&M-PMS PCO Other,PRC DELEGATED CO-COMMISSIONING,GLEADLESS MEDICAL CENTRE,34166835,559.20,CQCRP,S14 1PQ
Department of Health,NHS Sheffield CCG,10/31/2020,C&M-PMS Prem Notional Rent,PRC DELEGATED CO-COMMISSIONING,GLEADLESS MEDICAL CENTRE,34166835,"6,750.00",NRENT,S14 1PQ
Department of Health,NHS Sheffield CCG,10/31/2020,C&M-PMS Prem Rates,PRC DELEGATED CO-COMMISSIONING,GLEADLESS MEDICAL CENTRE,34166835,"1,684.00",RANDRP,S14 1PQ
Department of Health,NHS Sheffield CCG,10/31/2020,C&M-PMS Prem Water Rates,PRC DELEGATED CO-COMMISSIONING,GLEADLESS MEDICAL CENTRE,34166835,296.00,RAMWP,S14 1PQ
Department of Health,NHS Sheffield CCG,10/31/2020,C&M-PMS QOF Aspiration,PRC DELEGATED CO-COMMISSIONING,GLEADLESS MEDICAL CENTRE,34166835,"7,390.52",QUASPP,S14 1PQ
Department of Health,NHS Sheffield CCG,10/31/2020,C&M-GMS Cost of Drugs -Prescribing,LOCAL ENHANCED SERVICES,GRENOSIDE SURGERY,34381408,"2,087.49",DRGP,S35 8NX
Department of Health,NHS Sheffield CCG,10/31/2020,C&M-GMS Global Sum,PRC DELEGATED CO-COMMISSIONING,GRENOSIDE SURGERY,34381408,"63,156.45",GSUMG,S35 8NX
Department of Health,NHS Sheffield CCG,10/31/2020,C&M-GMS PCN DES Participation,PRC DELEGATED CO-COMMISSIONING,GRENOSIDE SURGERY,34381408,"2,442.24",PARTIG,S35 8NX
Department of Health,NHS Sheffield CCG,10/31/2020,C&M-GMS Prem Notional Rent,PRC DELEGATED CO-COMMISSIONING,GRENOSIDE SURGERY,34381408,"8,110.42",NRENT,S35 8NX
Department of Health,NHS Sheffield CCG,10/31/2020,C&M-GMS Prem Rates,PRC DELEGATED CO-COMMISSIONING,GRENOSIDE SURGERY,34381408,"2,109.00",RANDR,S35 8NX
Department of Health,NHS Sheffield CCG,10/31/2020,C&M-GMS Prof Fees Prescribing,PRC DELEGATED CO-COMMISSIONING,GRENOSIDE SURGERY,34381408,145.09,DRGPPF,S35 8NX
Department of Health,NHS Sheffield CCG,10/31/2020,C&M-GMS QOF Aspiration,PRC DELEGATED CO-COMMISSIONING,GRENOSIDE SURGERY,34381408,"5,840.97",QUASPG,S35 8NX
Department of Health,NHS Sheffield CCG,10/31/2020,C&M-GMS Cost of Drugs -Prescribing,LOCAL ENHANCED SERVICES,GREYSTONES MEDICAL CENTRE,34381410,114.19,DRGP,S11 7BJ
Department of Health,NHS Sheffield CCG,10/31/2020,C&M-GMS Global Sum,PRC DELEGATED CO-COMMISSIONING,GREYSTONES MEDICAL CENTRE,34381410,"20,579.57",GSUMG,S11 7BJ
Department of Health,NHS Sheffield CCG,10/31/2020,C&M-GMS PCN DES Participation,PRC DELEGATED CO-COMMISSIONING,GREYSTONES MEDICAL CENTRE,34381410,814.36,PARTIG,S11 7BJ
Department of Health,NHS Sheffield CCG,10/31/2020,C&M-GMS PCO Other,PRC DELEGATED CO-COMMISSIONING,GREYSTONES MEDICAL CENTRE,34381410,264.20,CQCRG,S11 7BJ
Department of Health,NHS Sheffield CCG,10/31/2020,C&M-GMS Prem Notional Rent,PRC DELEGATED CO-COMMISSIONING,GREYSTONES MEDICAL CENTRE,34381410,"2,885.42",NRENT,S11 7BJ
Department of Health,NHS Sheffield CCG,10/31/2020,C&M-GMS Prem Rates,PRC DELEGATED CO-COMMISSIONING,GREYSTONES MEDICAL CENTRE,34381410,707.00,RANDR,S11 7BJ
Department of Health,NHS Sheffield CCG,10/31/2020,C&M-GMS Prem Water Rates,PRC DELEGATED CO-COMMISSIONING,GREYSTONES MEDICAL CENTRE,34381410,149.84,RAMW,S11 7BJ
Department of Health,NHS Sheffield CCG,10/31/2020,C&M-GMS Prof Fees Prescribing,PRC DELEGATED CO-COMMISSIONING,GREYSTONES MEDICAL CENTRE,34381410,34.55,DRGPPF,S11 7BJ
Department of Health,NHS Sheffield CCG,10/31/2020,C&M-GMS QOF Aspiration,PRC DELEGATED CO-COMMISSIONING,GREYSTONES MEDICAL CENTRE,34381410,"2,326.23",QUASPG,S11 7BJ
Department of Health,NHS Sheffield CCG,10/31/2020,C&M-PMS Contract Value,PRC DELEGATED CO-COMMISSIONING,HACKENTHORPE MEDICAL CENTRE,34166837,"49,400.20",BABALP,S12 4LA
Department of Health,NHS Sheffield CCG,10/31/2020,C&M-PMS Funding Differential Review,PRC DELEGATED CO-COMMISSIONING,HACKENTHORPE MEDICAL CENTRE,34166837,881.57,ZFUNFP,S12 4LA
Department of Health,NHS Sheffield CCG,10/31/2020,C&M-PMS Out of Hours Opt Outs,PRC DELEGATED CO-COMMISSIONING,HACKENTHORPE MEDICAL CENTRE,34166837,12.63,APMOOH,S12 4LA
Department of Health,NHS Sheffield CCG,10/31/2020,C&M-PMS PCN DES Participation,PRC DELEGATED CO-COMMISSIONING,HACKENTHORPE MEDICAL CENTRE,34166837,"1,853.42",PARTIP,S12 4LA
Department of Health,NHS Sheffield CCG,10/31/2020,C&M-PMS PCO Locum Adop/Pat/Mat,PRC DELEGATED CO-COMMISSIONING,HACKENTHORPE MEDICAL CENTRE,34166837,"4,386.74",SICKC,S12 4LA
Department of Health,NHS Sheffield CCG,10/31/2020,C&M-PMS PCO Other,PRC DELEGATED CO-COMMISSIONING,HACKENTHORPE MEDICAL CENTRE,34166837,435.70,CQCRP,S12 4LA
Department of Health,NHS Sheffield CCG,10/31/2020,C&M-PMS Prem Notional Rent,PRC DELEGATED CO-COMMISSIONING,HACKENTHORPE MEDICAL CENTRE,34166837,"5,116.67",NRENT,S12 4LA
Department of Health,NHS Sheffield CCG,10/31/2020,C&M-PMS Prem Rates,PRC DELEGATED CO-COMMISSIONING,HACKENTHORPE MEDICAL CENTRE,34166837,"1,385.00",RANDRP,S12 4LA
Department of Health,NHS Sheffield CCG,10/31/2020,C&M-PMS QOF Aspiration,PRC DELEGATED CO-COMMISSIONING,HACKENTHORPE MEDICAL CENTRE,34166837,"6,490.74",QUASPP,S12 4LA
Department of Health,NHS Sheffield CCG,10/31/2020,C&M-GMS Cost of Drugs -Prescribing,LOCAL ENHANCED SERVICES,HANDSWORTH MEDICAL PRACTICE SHEFFIELD,34381406,274.09,DRGP,S13 9BZ
Department of Health,NHS Sheffield CCG,10/31/2020,C&M-GMS Global Sum,PRC DELEGATED CO-COMMISSIONING,HANDSWORTH MEDICAL PRACTICE SHEFFIELD,34381406,"82,492.51",GSUMG,S13 9BZ
Department of Health,NHS Sheffield CCG,10/31/2020,C&M-GMS PCN DES Participation,PRC DELEGATED CO-COMMISSIONING,HANDSWORTH MEDICAL PRACTICE SHEFFIELD,34381406,"3,202.29",PARTIG,S13 9BZ
Department of Health,NHS Sheffield CCG,10/31/2020,C&M-GMS Prem Notional Rent,PRC DELEGATED CO-COMMISSIONING,HANDSWORTH MEDICAL PRACTICE SHEFFIELD,34381406,"3,321.66",NRENT,S13 9BZ
Department of Health,NHS Sheffield CCG,10/31/2020,C&M-GMS Prem Rates,PRC DELEGATED CO-COMMISSIONING,HANDSWORTH MEDICAL PRACTICE SHEFFIELD,34381406,"1,299.80",RANDR,S13 9BZ
Department of Health,NHS Sheffield CCG,10/31/2020,C&M-GMS Prem Water Rates,PRC DELEGATED CO-COMMISSIONING,HANDSWORTH MEDICAL PRACTICE SHEFFIELD,34381406,447.55,RAMW,S13 9BZ
Department of Health,NHS Sheffield CCG,10/31/2020,C&M-GMS Prof Fees Prescribing,PRC DELEGATED CO-COMMISSIONING,HANDSWORTH MEDICAL PRACTICE SHEFFIELD,34381406,110.54,DRGPPF,S13 9BZ
Department of Health,NHS Sheffield CCG,10/31/2020,C&M-GMS QOF Aspiration,PRC DELEGATED CO-COMMISSIONING,HANDSWORTH MEDICAL PRACTICE SHEFFIELD,34381406,"7,866.23",QUASPG,S13 9BZ
Department of Health,NHS Sheffield CCG,10/31/2020,C&M-GMS Global Sum,PRC DELEGATED CO-COMMISSIONING,HAROLD STREET MEDICAL CENTRE,34381403,"19,929.61",GSUMG,S6 3QW
Department of Health,NHS Sheffield CCG,10/31/2020,C&M-GMS PCN DES Participation,PRC DELEGATED CO-COMMISSIONING,HAROLD STREET MEDICAL CENTRE,34381403,810.91,PARTIG,S6 3QW
Department of Health,NHS Sheffield CCG,10/31/2020,C&M-GMS PCO Other,PRC DELEGATED CO-COMMISSIONING,HAROLD STREET MEDICAL CENTRE,34381403,218.90,CQCRG,S6 3QW
Department of Health,NHS Sheffield CCG,10/31/2020,C&M-GMS Prem Notional Rent,PRC DELEGATED CO-COMMISSIONING,HAROLD STREET MEDICAL CENTRE,34381403,"2,337.50",NRENT,S6 3QW
Department of Health,NHS Sheffield CCG,10/31/2020,C&M-GMS QOF Aspiration,PRC DELEGATED CO-COMMISSIONING,HAROLD STREET MEDICAL CENTRE,34381403,"2,231.83",QUASPG,S6 3QW
Department of Health,NHS Sheffield CCG,10/31/2020,Cont Care-Physical Disab (<65),CHC ADULT FULLY FUNDED,HC ONE LTD,34157991,"31,991.28",CHC SCHEDULE OCTOBER 2020 - Ascot Lodge Nursing Home (HC One),DL3 6AH
Department of Health,NHS Sheffield CCG,10/31/2020,C&M-GMS Cost of Drugs -Prescribing,LOCAL ENHANCED SERVICES,HEALTH CARE SURGERY,34381416,693.17,DRGP,S5 8GS
Department of Health,NHS Sheffield CCG,10/31/2020,C&M-GMS Global Sum,PRC DELEGATED CO-COMMISSIONING,HEALTH CARE SURGERY,34381416,"40,736.35",GSUMG,S5 8GS
Department of Health,NHS Sheffield CCG,10/31/2020,C&M-GMS PCN DES Participation,PRC DELEGATED CO-COMMISSIONING,HEALTH CARE SURGERY,34381416,"1,606.00",PARTIG,S5 8GS
Department of Health,NHS Sheffield CCG,10/31/2020,C&M-GMS PCO Other,PRC DELEGATED CO-COMMISSIONING,HEALTH CARE SURGERY,34381416,337.00,CQCRG,S5 8GS
Department of Health,NHS Sheffield CCG,10/31/2020,C&M-GMS Prem Notional Rent,PRC DELEGATED CO-COMMISSIONING,HEALTH CARE SURGERY,34381416,"3,862.50",NRENT,S5 8GS
Department of Health,NHS Sheffield CCG,10/31/2020,C&M-GMS Prem Rates,PRC DELEGATED CO-COMMISSIONING,HEALTH CARE SURGERY,34381416,755.00,RANDR,S5 8GS
Department of Health,NHS Sheffield CCG,10/31/2020,C&M-GMS Prof Fees Prescribing,PRC DELEGATED CO-COMMISSIONING,HEALTH CARE SURGERY,34381416,76.00,DRGPPF,S5 8GS
Department of Health,NHS Sheffield CCG,10/31/2020,C&M-GMS QOF Aspiration,PRC DELEGATED CO-COMMISSIONING,HEALTH CARE SURGERY,34381416,"4,354.34",QUASPG,S5 8GS
Department of Health,NHS Sheffield CCG,10/31/2020,C&M-GMS Cost of Drugs -Prescribing,LOCAL ENHANCED SERVICES,HEELEY GREEN SURGERY,34381412,865.34,DRGP,S2 3AJ
Department of Health,NHS Sheffield CCG,10/31/2020,C&M-GMS Global Sum,PRC DELEGATED CO-COMMISSIONING,HEELEY GREEN SURGERY,34381412,"43,048.97",GSUMG,S2 3AJ
Department of Health,NHS Sheffield CCG,10/31/2020,C&M-GMS PCN DES Participation,PRC DELEGATED CO-COMMISSIONING,HEELEY GREEN SURGERY,34381412,"1,716.38",PARTIG,S2 3AJ
Department of Health,NHS Sheffield CCG,10/31/2020,C&M-GMS Prem Notional Rent,PRC DELEGATED CO-COMMISSIONING,HEELEY GREEN SURGERY,34381412,"3,254.17",NRENT,S2 3AJ
Department of Health,NHS Sheffield CCG,10/31/2020,C&M-GMS Prof Fees Prescribing,PRC DELEGATED CO-COMMISSIONING,HEELEY GREEN SURGERY,34381412,64.48,DRGPPF,S2 3AJ
Department of Health,NHS Sheffield CCG,10/31/2020,C&M-GMS QOF Aspiration,PRC DELEGATED CO-COMMISSIONING,HEELEY GREEN SURGERY,34381412,"4,729.13",QUASPG,S2 3AJ
Department of Health,NHS Sheffield CCG,10/31/2020,C&M-GMS Cost of Drugs -Prescribing,LOCAL ENHANCED SERVICES,HOLLIES MEDICAL CENTRE,34381414,"2,649.09",DRGP,S11 9AL
Department of Health,NHS Sheffield CCG,10/31/2020,C&M-GMS Global Sum,PRC DELEGATED CO-COMMISSIONING,HOLLIES MEDICAL CENTRE,34381414,"64,793.36",GSUMG,S11 9AL
Department of Health,NHS Sheffield CCG,10/31/2020,C&M-GMS PCN DES Participation,PRC DELEGATED CO-COMMISSIONING,HOLLIES MEDICAL CENTRE,34381414,"2,495.24",PARTIG,S11 9AL
Department of Health,NHS Sheffield CCG,10/31/2020,C&M-GMS PCO Other,PRC DELEGATED CO-COMMISSIONING,HOLLIES MEDICAL CENTRE,34381414,608.70,CQCRG,S11 9AL
Department of Health,NHS Sheffield CCG,10/31/2020,C&M-GMS Prem Notional Rent,PRC DELEGATED CO-COMMISSIONING,HOLLIES MEDICAL CENTRE,34381414,"3,229.17",NRENT,S11 9AL
Department of Health,NHS Sheffield CCG,10/31/2020,C&M-GMS Prem Rates,PRC DELEGATED CO-COMMISSIONING,HOLLIES MEDICAL CENTRE,34381414,"1,818.00",RANDR,S11 9AL
Department of Health,NHS Sheffield CCG,10/31/2020,C&M-GMS Prof Fees Prescribing,PRC DELEGATED CO-COMMISSIONING,HOLLIES MEDICAL CENTRE,34381414,218.79,DRGPPF,S11 9AL
Department of Health,NHS Sheffield CCG,10/31/2020,C&M-GMS QOF Aspiration,PRC DELEGATED CO-COMMISSIONING,HOLLIES MEDICAL CENTRE,34381414,"7,315.52",QUASPG,S11 9AL
Department of Health,NHS Sheffield CCG,10/31/2020,Cont Care-Physical Disab (<65),CHC ADULT FULLY FUNDED,HORIZON CARE HOMES LTD,34157985,"65,995.94",CHC SCHEDULE OCTOBER 2020 - Wood Hill Grange (Horizon Care Homes),S25 3QA
Department of Health,NHS Sheffield CCG,10/31/2020,Cont Care-Physical Disab (<65),CHC ADULT FULLY FUNDED,HORIZON CARE HOMES LTD,34157997,"41,526.62",CHC SCHEDULE OCTOBER 2020 - Wood Hill House,S25 3QA
Department of Health,NHS Sheffield CCG,10/31/2020,Cont Care-Physical Disab (<65),CHC ADULT FULLY FUNDED,HORIZON CARE HOMES LTD,34157999,"69,258.12",CHC SCHEDULE OCTOBER 2020 - Wood Hill Lodge,S25 3QA
Department of Health,NHS Sheffield CCG,10/31/2020,Hcare Srv Rec NHS Trust-Contract Baseline,ACUTE COMMISSIONING,HUMBER TEACHING NHS FOUNDATION TRUST,34236836,"101,334.00",,WF3 1WE
Department of Health,NHS Sheffield CCG,10/31/2020,Cont Care-Physical Disab (<65),CHC ADULT FULLY FUNDED,INLET LTD,34158002,"71,294.98",CHC SCHEDULE OCTOBER 2020 - Loxley Court (Inlet Ltd),S48NB
Department of Health,NHS Sheffield CCG,10/31/2020,C&M-PMS Contract Value,PRC DELEGATED CO-COMMISSIONING,JAUNTY SPRINGS HEALTH CENTRE,34166839,"31,488.51",BABALP,S12 3DZ
Department of Health,NHS Sheffield CCG,10/31/2020,C&M-PMS DES Extended Hours Access,PRC DELEGATED CO-COMMISSIONING,JAUNTY SPRINGS HEALTH CENTRE,34166839,"8,433.94",EXTHDP,S12 3DZ
Department of Health,NHS Sheffield CCG,10/31/2020,C&M-PMS Funding Differential Review,PRC DELEGATED CO-COMMISSIONING,JAUNTY SPRINGS HEALTH CENTRE,34166839,600.45,ZFUNFP,S12 3DZ
Department of Health,NHS Sheffield CCG,10/31/2020,C&M-PMS Out of Hours Opt Outs,PRC DELEGATED CO-COMMISSIONING,JAUNTY SPRINGS HEALTH CENTRE,34166839,12.20,APMOOH,S12 3DZ
Department of Health,NHS Sheffield CCG,10/31/2020,C&M-PMS PCN DES Clinical Director,PRC DELEGATED CO-COMMISSIONING,JAUNTY SPRINGS HEALTH CENTRE,34166839,"4,190.81",CLINDP,S12 3DZ
Department of Health,NHS Sheffield CCG,10/31/2020,C&M-PMS PCN DES PCN support,LOCAL ENHANCED SERVICES,JAUNTY SPRINGS HEALTH CENTRE,34166839,"8,718.76",PCNSUP,S12 3DZ
Department of Health,NHS Sheffield CCG,10/31/2020,C&M-PMS PCN DES Participation,PRC DELEGATED CO-COMMISSIONING,JAUNTY SPRINGS HEALTH CENTRE,34166839,"1,186.59",PARTIP,S12 3DZ
Department of Health,NHS Sheffield CCG,10/31/2020,C&M-PMS PCO Other,PRC DELEGATED CO-COMMISSIONING,JAUNTY SPRINGS HEALTH CENTRE,34166839,266.60,CQCRP,S12 3DZ
Department of Health,NHS Sheffield CCG,10/31/2020,C&M-PMS Prem Notional Rent,PRC DELEGATED CO-COMMISSIONING,JAUNTY SPRINGS HEALTH CENTRE,34166839,"3,208.33",NRENT,S12 3DZ
Department of Health,NHS Sheffield CCG,10/31/2020,C&M-PMS Prem Rates,PRC DELEGATED CO-COMMISSIONING,JAUNTY SPRINGS HEALTH CENTRE,34166839,830.00,RANDRP,S12 3DZ
Department of Health,NHS Sheffield CCG,10/31/2020,C&M-PMS QOF Aspiration,PRC DELEGATED CO-COMMISSIONING,JAUNTY SPRINGS HEALTH CENTRE,34166839,"3,693.16",QUASPP,S12 3DZ
Department of Health,NHS Sheffield CCG,10/31/2020,Audit Fees: Statutory,CHC ADULT FULLY FUNDED,KPMG LLP,34196845,"27,000.00",,WD17 1DE
Department of Health,NHS Sheffield CCG,10/31/2020,Hcare Srv Rec NHS Trust-Contract Baseline,ACUTE COMMISSIONING,LEEDS TEACHING HOSPITALS NHS TRUST,34236830,"47,860.51",,LS9 7TF
Department of Health,NHS Sheffield CCG,10/31/2020,Cont Care-Physical Disab (<65),CHC ADULT FULLY FUNDED,LONGLEY HEALTH CARE LTD,34157970,"98,176.32",CHC SCHEDULE OCTOBER 2020 - Longley Park View Nursing Home (Exemplar HC),S5 7JZ
Department of Health,NHS Sheffield CCG,10/31/2020,C&M-PMS Contract Value,PRC DELEGATED CO-COMMISSIONING,MANCHESTER ROAD SURGERY SHEFFIELD,34166843,"33,616.75",BABALP,S10 5PN
Department of Health,NHS Sheffield CCG,10/31/2020,C&M-PMS Funding Differential Review,PRC DELEGATED CO-COMMISSIONING,MANCHESTER ROAD SURGERY SHEFFIELD,34166843,604.16,ZFUNFP,S10 5PN
Department of Health,NHS Sheffield CCG,10/31/2020,C&M-PMS Out of Hours Opt Outs,PRC DELEGATED CO-COMMISSIONING,MANCHESTER ROAD SURGERY SHEFFIELD,34166843,4.42,APMOOH,S10 5PN
Department of Health,NHS Sheffield CCG,10/31/2020,C&M-PMS PCN DES Participation,PRC DELEGATED CO-COMMISSIONING,MANCHESTER ROAD SURGERY SHEFFIELD,34166843,"1,263.76",PARTIP,S10 5PN
Department of Health,NHS Sheffield CCG,10/31/2020,C&M-PMS Prem Cost Rent,PRC DELEGATED CO-COMMISSIONING,MANCHESTER ROAD SURGERY SHEFFIELD,34166843,"3,091.46",COST,S10 5PN
Department of Health,NHS Sheffield CCG,10/31/2020,C&M-PMS Prem Notional Rent,PRC DELEGATED CO-COMMISSIONING,MANCHESTER ROAD SURGERY SHEFFIELD,34166843,442.92,NRENT,S10 5PN
Department of Health,NHS Sheffield CCG,10/31/2020,C&M-PMS Prem Rates,PRC DELEGATED CO-COMMISSIONING,MANCHESTER ROAD SURGERY SHEFFIELD,34166843,986.00,RANDRP,S10 5PN
Department of Health,NHS Sheffield CCG,10/31/2020,C&M-PMS QOF Aspiration,PRC DELEGATED CO-COMMISSIONING,MANCHESTER ROAD SURGERY SHEFFIELD,34166843,"3,837.07",QUASPP,S10 5PN
Department of Health,NHS Sheffield CCG,10/31/2020,C&M-PMS Contract Value,PRC DELEGATED CO-COMMISSIONING,MANOR & PARK GROUP PRACTICE,34170548,"73,769.32",BABALP,S2 5QQ
Department of Health,NHS Sheffield CCG,10/31/2020,C&M-PMS Out of Hours Opt Outs,PRC DELEGATED CO-COMMISSIONING,MANOR & PARK GROUP PRACTICE,34170548,48.65,APMOOH,S2 5QQ
Department of Health,NHS Sheffield CCG,10/31/2020,C&M-PMS PCN DES Participation,PRC DELEGATED CO-COMMISSIONING,MANOR & PARK GROUP PRACTICE,34170548,"2,777.35",PARTIP,S2 5QQ
Department of Health,NHS Sheffield CCG,10/31/2020,C&M-PMS Prem Notional Rent,PRC DELEGATED CO-COMMISSIONING,MANOR & PARK GROUP PRACTICE,34170548,"9,050.00",NRENT,S2 5QQ
Department of Health,NHS Sheffield CCG,10/31/2020,C&M-PMS Prem Rates,PRC DELEGATED CO-COMMISSIONING,MANOR & PARK GROUP PRACTICE,34170548,"1,864.00",RANDRP,S2 5QQ
Department of Health,NHS Sheffield CCG,10/31/2020,C&M-PMS QOF Aspiration,PRC DELEGATED CO-COMMISSIONING,MANOR & PARK GROUP PRACTICE,34170548,"6,093.98",QUASPP,S2 5QQ
Department of Health,NHS Sheffield CCG,10/31/2020,Miscellaneous Expenditure (L9),ADMIN PROJECTS,MARTIN HOUSE,34076151,"30,941.09",,LS23 6TX
Department of Health,NHS Sheffield CCG,10/31/2020,C&M-GMS Cost of Drugs -Prescribing,LOCAL ENHANCED SERVICES,MATHEWS PRACTICE,34381424,110.68,DRGP,S2 4UJ
Department of Health,NHS Sheffield CCG,10/31/2020,C&M-GMS Global Sum,PRC DELEGATED CO-COMMISSIONING,MATHEWS PRACTICE,34381424,"59,073.17",GSUMG,S2 4UJ
Department of Health,NHS Sheffield CCG,10/31/2020,C&M-GMS PCN DES Participation,PRC DELEGATED CO-COMMISSIONING,MATHEWS PRACTICE,34381424,"2,378.78",PARTIG,S2 4UJ
Department of Health,NHS Sheffield CCG,10/31/2020,C&M-GMS Prem Rates,PRC DELEGATED CO-COMMISSIONING,MATHEWS PRACTICE,34381424,"2,183.00",RANDR,S2 4UJ
Department of Health,NHS Sheffield CCG,10/31/2020,C&M-GMS Prof Fees Prescribing,PRC DELEGATED CO-COMMISSIONING,MATHEWS PRACTICE,34381424,52.97,DRGPPF,S2 4UJ
Department of Health,NHS Sheffield CCG,10/31/2020,C&M-GMS QOF Aspiration,PRC DELEGATED CO-COMMISSIONING,MATHEWS PRACTICE,34381424,"7,173.28",QUASPG,S2 4UJ
Department of Health,NHS Sheffield CCG,10/31/2020,C&M-PMS Contract Value,PRC DELEGATED CO-COMMISSIONING,MEADOWHEAD GROUP PRACTICE,34166841,"130,187.01",BABALP,S8 7RL
Department of Health,NHS Sheffield CCG,10/31/2020,C&M-PMS Cost of Drugs -Prescribing,LOCAL ENHANCED SERVICES,MEADOWHEAD GROUP PRACTICE,34166841,419.87,DRGP,S8 7RL
Department of Health,NHS Sheffield CCG,10/31/2020,C&M-PMS Funding Differential Review,PRC DELEGATED CO-COMMISSIONING,MEADOWHEAD GROUP PRACTICE,34166841,"2,003.74",ZFUNFP,S8 7RL
Department of Health,NHS Sheffield CCG,10/31/2020,C&M-PMS Out of Hours Opt Outs,PRC DELEGATED CO-COMMISSIONING,MEADOWHEAD GROUP PRACTICE,34166841,31.09,APMOOH,S8 7RL
Department of Health,NHS Sheffield CCG,10/31/2020,C&M-PMS PCN DES Participation,PRC DELEGATED CO-COMMISSIONING,MEADOWHEAD GROUP PRACTICE,34166841,"3,821.10",PARTIP,S8 7RL
Department of Health,NHS Sheffield CCG,10/31/2020,C&M-PMS PCO Locum Adop/Pat/Mat,PRC DELEGATED CO-COMMISSIONING,MEADOWHEAD GROUP PRACTICE,34166841,"7,711.45",SICKC,S8 7RL
Department of Health,NHS Sheffield CCG,10/31/2020,C&M-PMS PCO Other,PRC DELEGATED CO-COMMISSIONING,MEADOWHEAD GROUP PRACTICE,34166841,456.10,CQCRP,S8 7RL
Department of Health,NHS Sheffield CCG,10/31/2020,C&M-PMS Prem Cost Rent,PRC DELEGATED CO-COMMISSIONING,MEADOWHEAD GROUP PRACTICE,34166841,"3,647.42",COST,S8 7RL
Department of Health,NHS Sheffield CCG,10/31/2020,C&M-PMS Prem Healthcentre Rent,PRC DELEGATED CO-COMMISSIONING,MEADOWHEAD GROUP PRACTICE,34166841,"41,665.03",HEALTH,S8 7RL
Department of Health,NHS Sheffield CCG,10/31/2020,C&M-PMS Prem Notional Rent,PRC DELEGATED CO-COMMISSIONING,MEADOWHEAD GROUP PRACTICE,34166841,"8,905.00",NRENT,S8 7RL
Department of Health,NHS Sheffield CCG,10/31/2020,C&M-PMS Prem Rates,PRC DELEGATED CO-COMMISSIONING,MEADOWHEAD GROUP PRACTICE,34166841,"3,253.00",RANDRP,S8 7RL
Department of Health,NHS Sheffield CCG,10/31/2020,C&M-PMS Prof fees Prescribing,PRC DELEGATED CO-COMMISSIONING,MEADOWHEAD GROUP PRACTICE,34166841,105.94,DRGPPF,S8 7RL
Department of Health,NHS Sheffield CCG,10/31/2020,C&M-PMS QOF Aspiration,PRC DELEGATED CO-COMMISSIONING,MEADOWHEAD GROUP PRACTICE,34166841,"8,381.02",QUASPP,S8 7RL
Department of Health,NHS Sheffield CCG,10/31/2020,C&M-GMS Cost of Drugs -Prescribing,LOCAL ENHANCED SERVICES,MEDICAL CENTRE CRYSTAL PEAKS,34381420,503.92,DRGP,S20 7HZ
Department of Health,NHS Sheffield CCG,10/31/2020,C&M-GMS Global Sum,PRC DELEGATED CO-COMMISSIONING,MEDICAL CENTRE CRYSTAL PEAKS,34381420,"49,706.72",GSUMG,S20 7HZ
Department of Health,NHS Sheffield CCG,10/31/2020,C&M-GMS PCN DES Participation,PRC DELEGATED CO-COMMISSIONING,MEDICAL CENTRE CRYSTAL PEAKS,34381420,"1,948.24",PARTIG,S20 7HZ
Department of Health,NHS Sheffield CCG,10/31/2020,C&M-GMS PCO Locum Sickness,PRC DELEGATED CO-COMMISSIONING,MEDICAL CENTRE CRYSTAL PEAKS,34381420,"5,057.04",LOCSIG,S20 7HZ
Department of Health,NHS Sheffield CCG,10/31/2020,C&M-GMS PCO Other,PRC DELEGATED CO-COMMISSIONING,MEDICAL CENTRE CRYSTAL PEAKS,34381420,431.60,CQCRG,S20 7HZ
Department of Health,NHS Sheffield CCG,10/31/2020,C&M-GMS Prem Actual Rent,PRC DELEGATED CO-COMMISSIONING,MEDICAL CENTRE CRYSTAL PEAKS,34381420,"17,610.00",RENT,S20 7HZ
Department of Health,NHS Sheffield CCG,10/31/2020,C&M-GMS Prem Notional Rent,PRC DELEGATED CO-COMMISSIONING,MEDICAL CENTRE CRYSTAL PEAKS,34381420,270.00,NRENT,S20 7HZ
Department of Health,NHS Sheffield CCG,10/31/2020,C&M-GMS Prem Rates,PRC DELEGATED CO-COMMISSIONING,MEDICAL CENTRE CRYSTAL PEAKS,34381420,"1,073.00",RANDR,S20 7HZ
Department of Health,NHS Sheffield CCG,10/31/2020,C&M-GMS Prof Fees Prescribing,PRC DELEGATED CO-COMMISSIONING,MEDICAL CENTRE CRYSTAL PEAKS,34381420,269.46,DRGPPF,S20 7HZ
Department of Health,NHS Sheffield CCG,10/31/2020,C&M-GMS QOF Aspiration,PRC DELEGATED CO-COMMISSIONING,MEDICAL CENTRE CRYSTAL PEAKS,34381420,"6,365.03",QUASPG,S20 7HZ
Department of Health,NHS Sheffield CCG,10/31/2020,C&M-GMS Cost of Drugs -Prescribing,LOCAL ENHANCED SERVICES,MILL ROAD SURGERY SHEFFIELD,34381427,555.75,DRGP,S35 9XQ
Department of Health,NHS Sheffield CCG,10/31/2020,C&M-GMS Global Sum,PRC DELEGATED CO-COMMISSIONING,MILL ROAD SURGERY SHEFFIELD,34381427,"42,313.48",GSUMG,S35 9XQ
Department of Health,NHS Sheffield CCG,10/31/2020,C&M-GMS PCN DES Participation,PRC DELEGATED CO-COMMISSIONING,MILL ROAD SURGERY SHEFFIELD,34381427,"1,669.50",PARTIG,S35 9XQ
Department of Health,NHS Sheffield CCG,10/31/2020,C&M-GMS PCO Other,PRC DELEGATED CO-COMMISSIONING,MILL ROAD SURGERY SHEFFIELD,34381427,352.00,CQCRG,S35 9XQ
Department of Health,NHS Sheffield CCG,10/31/2020,C&M-GMS Prem Notional Rent,PRC DELEGATED CO-COMMISSIONING,MILL ROAD SURGERY SHEFFIELD,34381427,"4,593.33",NRENT,S35 9XQ
Department of Health,NHS Sheffield CCG,10/31/2020,C&M-GMS Prem Rates,PRC DELEGATED CO-COMMISSIONING,MILL ROAD SURGERY SHEFFIELD,34381427,"1,073.00",RANDR,S35 9XQ
Department of Health,NHS Sheffield CCG,10/31/2020,C&M-GMS Prof Fees Prescribing,PRC DELEGATED CO-COMMISSIONING,MILL ROAD SURGERY SHEFFIELD,34381427,92.13,DRGPPF,S35 9XQ
Department of Health,NHS Sheffield CCG,10/31/2020,C&M-GMS QOF Aspiration,PRC DELEGATED CO-COMMISSIONING,MILL ROAD SURGERY SHEFFIELD,34381427,"5,109.19",QUASPG,S35 9XQ
Department of Health,NHS Sheffield CCG,10/31/2020,Clinical&Medical-Independent Sector,Mental Health Services - S117 Mental Health,MOORVILLE RESIDENTIAL,34155888,"29,616.47",,S10 5FA
Department of Health,NHS Sheffield CCG,10/31/2020,Cont Care-Learning Disab(<65),CHC ADULT FULLY FUNDED,MOORVILLE RESIDENTIAL,34155888,"9,423.38",https://nww.einvoice-prod.sbs.nhs.uk:8179/invoicepdf/bf8c9fc8-e2c3-5558-90fa-005d35d33ebd,S10 5FA
Department of Health,NHS Sheffield CCG,10/31/2020,Cont Care-Learning Disab(<65),CHC ADULT JOINT FUNDED,MOORVILLE RESIDENTIAL,34155888,"4,333.18",,S10 5FA
Department of Health,NHS Sheffield CCG,10/31/2020,Cont Care-Mental Health (<65),CHC ADULT JOINT FUNDED,MOORVILLE RESIDENTIAL,34155888,506.23,,S10 5FA
Department of Health,NHS Sheffield CCG,10/31/2020,C&M-PMS Contract Value,PRC DELEGATED CO-COMMISSIONING,MOSBOROUGH HEALTH CENTRE,34166845,"51,348.79",BABALP,S20 5BQ
Department of Health,NHS Sheffield CCG,10/31/2020,C&M-PMS Funding Differential Review,PRC DELEGATED CO-COMMISSIONING,MOSBOROUGH HEALTH CENTRE,34166845,891.89,ZFUNFP,S20 5BQ
Department of Health,NHS Sheffield CCG,10/31/2020,C&M-PMS PCN DES Participation,PRC DELEGATED CO-COMMISSIONING,MOSBOROUGH HEALTH CENTRE,34166845,"1,911.97",PARTIP,S20 5BQ
Department of Health,NHS Sheffield CCG,10/31/2020,C&M-PMS Prem Notional Rent,PRC DELEGATED CO-COMMISSIONING,MOSBOROUGH HEALTH CENTRE,34166845,"4,091.67",NRENT,S20 5BQ
Department of Health,NHS Sheffield CCG,10/31/2020,C&M-PMS Prem Rates,PRC DELEGATED CO-COMMISSIONING,MOSBOROUGH HEALTH CENTRE,34166845,"1,604.00",RANDRP,S20 5BQ
Department of Health,NHS Sheffield CCG,10/31/2020,C&M-PMS QOF Aspiration,PRC DELEGATED CO-COMMISSIONING,MOSBOROUGH HEALTH CENTRE,34166845,"5,629.90",QUASPP,S20 5BQ
Department of Health,NHS Sheffield CCG,10/31/2020,C&M-PMS Contract Value,PRC DELEGATED CO-COMMISSIONING,NETHERGREEN SURGERY,34166847,"64,573.71",BABALP,S11 7EJ
Department of Health,NHS Sheffield CCG,10/31/2020,C&M-PMS Funding Differential Review,PRC DELEGATED CO-COMMISSIONING,NETHERGREEN SURGERY,34166847,"1,369.87",ZFUNFP,S11 7EJ
Department of Health,NHS Sheffield CCG,10/31/2020,C&M-PMS Out of Hours Opt Outs,PRC DELEGATED CO-COMMISSIONING,NETHERGREEN SURGERY,34166847,2.61,APMOOH,S11 7EJ
Department of Health,NHS Sheffield CCG,10/31/2020,C&M-PMS PCN DES Participation,PRC DELEGATED CO-COMMISSIONING,NETHERGREEN SURGERY,34166847,"2,404.52",PARTIP,S11 7EJ
Department of Health,NHS Sheffield CCG,10/31/2020,C&M-PMS PCO Locum Adop/Pat/Mat,PRC DELEGATED CO-COMMISSIONING,NETHERGREEN SURGERY,34166847,"4,703.99",SICKC,S11 7EJ
Department of Health,NHS Sheffield CCG,10/31/2020,C&M-PMS Prem Cost Rent,PRC DELEGATED CO-COMMISSIONING,NETHERGREEN SURGERY,34166847,"5,057.33",COST,S11 7EJ
Department of Health,NHS Sheffield CCG,10/31/2020,C&M-PMS Prem Rates,PRC DELEGATED CO-COMMISSIONING,NETHERGREEN SURGERY,34166847,"1,285.00",RANDRP,S11 7EJ
Department of Health,NHS Sheffield CCG,10/31/2020,C&M-PMS Prem Water Rates,PRC DELEGATED CO-COMMISSIONING,NETHERGREEN SURGERY,34166847,"1,507.70",RAMWP,S11 7EJ
Department of Health,NHS Sheffield CCG,10/31/2020,C&M-PMS QOF Aspiration,PRC DELEGATED CO-COMMISSIONING,NETHERGREEN SURGERY,34166847,"5,887.42",QUASPP,S11 7EJ
Department of Health,NHS Sheffield CCG,10/31/2020,Charges from CSU,BUSINESS INFORMATICS,NHS NORTH OF ENGLAND CSU,34408708,"27,375.92",DSCRO and Data Mgt Services - Oct 20 Queries to jordan.ho@nhs.net,WF3 1WE
Department of Health,NHS Sheffield CCG,10/31/2020,Voids and Subsidies,RECHARGES NHS PROPERTY SERVICES LTD,NHS PROPERTY SERVICES LTD,34236472,"26,569.88",https://nww.einvoice-prod.sbs.nhs.uk:8179/invoicepdf/2b25d9a9-8214-5588-b5d1-0e9bcb1bc12f,EC2V 7NG
Department of Health,NHS Sheffield CCG,10/31/2020,Voids and Subsidies,RECHARGES NHS PROPERTY SERVICES LTD,NHS PROPERTY SERVICES LTD,34236476,"25,177.01",https://nww.einvoice-prod.sbs.nhs.uk:8179/invoicepdf/395e8d72-5b65-551d-8ab9-36aeeb182bd8,EC2V 7NG
Department of Health,NHS Sheffield CCG,10/31/2020,C&M-GMS Cost of Drugs -Prescribing,LOCAL ENHANCED SERVICES,NORFOLK PARK HEALTH CENTRE,34381432,522.37,DRGP,S2 3TA
Department of Health,NHS Sheffield CCG,10/31/2020,C&M-GMS Global Sum,PRC DELEGATED CO-COMMISSIONING,NORFOLK PARK HEALTH CENTRE,34381432,"42,448.61",GSUMG,S2 3TA
Department of Health,NHS Sheffield CCG,10/31/2020,C&M-GMS PCN DES Participation,PRC DELEGATED CO-COMMISSIONING,NORFOLK PARK HEALTH CENTRE,34381432,"1,603.19",PARTIG,S2 3TA
Department of Health,NHS Sheffield CCG,10/31/2020,C&M-GMS Prem Healthcentre Rent,PRC DELEGATED CO-COMMISSIONING,NORFOLK PARK HEALTH CENTRE,34381432,"25,249.98",HEALTH,S2 3TA
Department of Health,NHS Sheffield CCG,10/31/2020,C&M-GMS Prof Fees Prescribing,PRC DELEGATED CO-COMMISSIONING,NORFOLK PARK HEALTH CENTRE,34381432,85.21,DRGPPF,S2 3TA
Department of Health,NHS Sheffield CCG,10/31/2020,C&M-GMS QOF Aspiration,PRC DELEGATED CO-COMMISSIONING,NORFOLK PARK HEALTH CENTRE,34381432,"3,959.66",QUASPG,S2 3TA
Department of Health,NHS Sheffield CCG,10/31/2020,C&M-GMS Cost of Drugs -Prescribing,LOCAL ENHANCED SERVICES,NORWOOD MEDICAL CENTRE SHEFFIELD,34381435,221.57,DRGP,S5 7HD
Department of Health,NHS Sheffield CCG,10/31/2020,C&M-GMS Global Sum,PRC DELEGATED CO-COMMISSIONING,NORWOOD MEDICAL CENTRE SHEFFIELD,34381435,"68,410.54",GSUMG,S5 7HD
Department of Health,NHS Sheffield CCG,10/31/2020,C&M-GMS PCN DES Participation,PRC DELEGATED CO-COMMISSIONING,NORWOOD MEDICAL CENTRE SHEFFIELD,34381435,"2,690.13",PARTIG,S5 7HD
Department of Health,NHS Sheffield CCG,10/31/2020,C&M-GMS PCO Other,PRC DELEGATED CO-COMMISSIONING,NORWOOD MEDICAL CENTRE SHEFFIELD,34381435,513.80,CQCRG,S5 7HD
Department of Health,NHS Sheffield CCG,10/31/2020,C&M-GMS Prem Notional Rent,PRC DELEGATED CO-COMMISSIONING,NORWOOD MEDICAL CENTRE SHEFFIELD,34381435,"5,187.50",NRENT,S5 7HD
Department of Health,NHS Sheffield CCG,10/31/2020,C&M-GMS Prof Fees Prescribing,PRC DELEGATED CO-COMMISSIONING,NORWOOD MEDICAL CENTRE SHEFFIELD,34381435,57.58,DRGPPF,S5 7HD
Department of Health,NHS Sheffield CCG,10/31/2020,C&M-GMS QOF Aspiration,PRC DELEGATED CO-COMMISSIONING,NORWOOD MEDICAL CENTRE SHEFFIELD,34381435,"8,207.51",QUASPG,S5 7HD
Department of Health,NHS Sheffield CCG,10/31/2020,Clinical&Medical-Independent Sector,ACUTE COMMISSIONING,ONEHEALTH GROUP,34310923,"25,844.71",https://nww.einvoice-prod.sbs.nhs.uk:8179/invoicepdf/474d859e-4b80-57ca-8f63-7dbb8353cc84,S11 8UX
Department of Health,NHS Sheffield CCG,10/31/2020,C&M-GMS Cost of Drugs -Dispensing,LOCAL ENHANCED SERVICES,OUGHTIBRIDGE SURGERY,34381438,"31,447.05","DRGD,DRGADV",S35 0FW
Department of Health,NHS Sheffield CCG,10/31/2020,C&M-GMS Global Sum,PRC DELEGATED CO-COMMISSIONING,OUGHTIBRIDGE SURGERY,34381438,"45,143.64",GSUMG,S35 0FW
Department of Health,NHS Sheffield CCG,10/31/2020,C&M-GMS PCN DES Participation,PRC DELEGATED CO-COMMISSIONING,OUGHTIBRIDGE SURGERY,34381438,"1,785.92",PARTIG,S35 0FW
Department of Health,NHS Sheffield CCG,10/31/2020,C&M-GMS Prem Notional Rent,PRC DELEGATED CO-COMMISSIONING,OUGHTIBRIDGE SURGERY,34381438,"3,957.33",NRENT,S35 0FW
Department of Health,NHS Sheffield CCG,10/31/2020,C&M-GMS Prem Rates,PRC DELEGATED CO-COMMISSIONING,OUGHTIBRIDGE SURGERY,34381438,"1,073.00",RANDR,S35 0FW
Department of Health,NHS Sheffield CCG,10/31/2020,C&M-GMS Prem Water Rates,PRC DELEGATED CO-COMMISSIONING,OUGHTIBRIDGE SURGERY,34381438,215.44,RAMW,S35 0FW
Department of Health,NHS Sheffield CCG,10/31/2020,C&M-GMS Prof Fees Dispensing,PRC DELEGATED CO-COMMISSIONING,OUGHTIBRIDGE SURGERY,34381438,"4,105.32",DRGDPF,S35 0FW
Department of Health,NHS Sheffield CCG,10/31/2020,C&M-GMS PrscrptnChrgsColl&RmttdbyGP,LOCAL ENHANCED SERVICES,OUGHTIBRIDGE SURGERY,34381438,658.80,DRGPR,S35 0FW
Department of Health,NHS Sheffield CCG,10/31/2020,C&M-GMS QOF Aspiration,PRC DELEGATED CO-COMMISSIONING,OUGHTIBRIDGE SURGERY,34381438,"4,282.40",QUASPG,S35 0FW
Department of Health,NHS Sheffield CCG,10/31/2020,C&M-PMS Contract Value,PRC DELEGATED CO-COMMISSIONING,OWLTHORPE MEDICAL CENTRE,34166849,"33,953.23",BABALP,S20 6PD
Department of Health,NHS Sheffield CCG,10/31/2020,C&M-PMS Funding Differential Review,PRC DELEGATED CO-COMMISSIONING,OWLTHORPE MEDICAL CENTRE,34166849,280.01,ZFUNFP,S20 6PD
Department of Health,NHS Sheffield CCG,10/31/2020,C&M-PMS Out of Hours Opt Outs,PRC DELEGATED CO-COMMISSIONING,OWLTHORPE MEDICAL CENTRE,34166849,2.82,APMOOH,S20 6PD
Department of Health,NHS Sheffield CCG,10/31/2020,C&M-PMS PCN DES Participation,PRC DELEGATED CO-COMMISSIONING,OWLTHORPE MEDICAL CENTRE,34166849,"1,267.74",PARTIP,S20 6PD
Department of Health,NHS Sheffield CCG,10/31/2020,C&M-PMS PCO Other,PRC DELEGATED CO-COMMISSIONING,OWLTHORPE MEDICAL CENTRE,34166849,305.40,CQCRP,S20 6PD
Department of Health,NHS Sheffield CCG,10/31/2020,C&M-PMS Prem Actual Rent,PRC DELEGATED CO-COMMISSIONING,OWLTHORPE MEDICAL CENTRE,34166849,"7,539.58",RENT,S20 6PD
Department of Health,NHS Sheffield CCG,10/31/2020,C&M-PMS QOF Aspiration,PRC DELEGATED CO-COMMISSIONING,OWLTHORPE MEDICAL CENTRE,34166849,"3,728.91",QUASPP,S20 6PD
Department of Health,NHS Sheffield CCG,10/31/2020,C&M-PMS Contract Value,PRC DELEGATED CO-COMMISSIONING,PAGE HALL MEDICAL CENTRE,34166851,"58,569.29",BABALP,S4 8GB
Department of Health,NHS Sheffield CCG,10/31/2020,C&M-PMS Funding Differential Review,PRC DELEGATED CO-COMMISSIONING,PAGE HALL MEDICAL CENTRE,34166851,"1,161.37",ZFUNFP,S4 8GB
Department of Health,NHS Sheffield CCG,10/31/2020,C&M-PMS Out of Hours Opt Outs,PRC DELEGATED CO-COMMISSIONING,PAGE HALL MEDICAL CENTRE,34166851,30.02,APMOOH,S4 8GB
Department of Health,NHS Sheffield CCG,10/31/2020,C&M-PMS PCN DES Participation,PRC DELEGATED CO-COMMISSIONING,PAGE HALL MEDICAL CENTRE,34166851,"2,194.23",PARTIP,S4 8GB
Department of Health,NHS Sheffield CCG,10/31/2020,C&M-PMS PCO Other,PRC DELEGATED CO-COMMISSIONING,PAGE HALL MEDICAL CENTRE,34166851,502.90,CQCRP,S4 8GB
Department of Health,NHS Sheffield CCG,10/31/2020,C&M-PMS Prem Notional Rent,PRC DELEGATED CO-COMMISSIONING,PAGE HALL MEDICAL CENTRE,34166851,"4,833.33",NRENT,S4 8GB
Department of Health,NHS Sheffield CCG,10/31/2020,C&M-PMS Prem Rates,PRC DELEGATED CO-COMMISSIONING,PAGE HALL MEDICAL CENTRE,34166851,"1,285.00",RANDRP,S4 8GB
Department of Health,NHS Sheffield CCG,10/31/2020,C&M-PMS QOF Aspiration,PRC DELEGATED CO-COMMISSIONING,PAGE HALL MEDICAL CENTRE,34166851,"3,909.14",QUASPP,S4 8GB
Department of Health,NHS Sheffield CCG,10/31/2020,C&M-PMS Contract Value,PRC DELEGATED CO-COMMISSIONING,PORTER BROOK MEDICAL CENTRE,34166852,"-5,872.68",BABALP,S11 8HN
Department of Health,NHS Sheffield CCG,10/31/2020,C&M-PMS GP Statutory Levy,PRC DELEGATED CO-COMMISSIONING,PORTER BROOK MEDICAL CENTRE,34166852,"-1,016.61",STATL,S11 8HN
Department of Health,NHS Sheffield CCG,10/31/2020,C&M-PMS Out of Hours Opt Outs,PRC DELEGATED CO-COMMISSIONING,PORTER BROOK MEDICAL CENTRE,34166852,"-8,057.86",APMOOH,S11 8HN
Department of Health,NHS Sheffield CCG,10/31/2020,C&M-PMS PCN DES Participation,PRC DELEGATED CO-COMMISSIONING,PORTER BROOK MEDICAL CENTRE,34166852,"-3,182.41",PARTIP,S11 8HN
Department of Health,NHS Sheffield CCG,10/31/2020,C&M-PMS Contract Value,PRC DELEGATED CO-COMMISSIONING,PORTER BROOK MEDICAL CENTRE,34166853,"169,776.61",BABALP,S11 8HN
Department of Health,NHS Sheffield CCG,10/31/2020,C&M-PMS Funding Differential Review,PRC DELEGATED CO-COMMISSIONING,PORTER BROOK MEDICAL CENTRE,34166853,"3,636.27",ZFUNFP,S11 8HN
Department of Health,NHS Sheffield CCG,10/31/2020,C&M-PMS Out of Hours Opt Outs,PRC DELEGATED CO-COMMISSIONING,PORTER BROOK MEDICAL CENTRE,34166853,279.02,APMOOH,S11 8HN
Department of Health,NHS Sheffield CCG,10/31/2020,C&M-PMS PCN DES Participation,PRC DELEGATED CO-COMMISSIONING,PORTER BROOK MEDICAL CENTRE,34166853,"6,370.24",PARTIP,S11 8HN
Department of Health,NHS Sheffield CCG,10/31/2020,C&M-PMS Prem Actual Rent,PRC DELEGATED CO-COMMISSIONING,PORTER BROOK MEDICAL CENTRE,34166853,"1,666.67",RENT,S11 8HN
Department of Health,NHS Sheffield CCG,10/31/2020,C&M-PMS Prem Notional Rent,PRC DELEGATED CO-COMMISSIONING,PORTER BROOK MEDICAL CENTRE,34166853,"9,666.67",NRENT,S11 8HN
Department of Health,NHS Sheffield CCG,10/31/2020,C&M-PMS Prem Rates,PRC DELEGATED CO-COMMISSIONING,PORTER BROOK MEDICAL CENTRE,34166853,"2,658.00",RANDRP,S11 8HN
Department of Health,NHS Sheffield CCG,10/31/2020,C&M-PMS Prem Water Rates,PRC DELEGATED CO-COMMISSIONING,PORTER BROOK MEDICAL CENTRE,34166853,289.23,RAMWP,S11 8HN
Department of Health,NHS Sheffield CCG,10/31/2020,C&M-PMS QOF Aspiration,PRC DELEGATED CO-COMMISSIONING,PORTER BROOK MEDICAL CENTRE,34166853,"10,115.59",QUASPP,S11 8HN
Department of Health,NHS Sheffield CCG,10/31/2020,C&M-GMS LES Equitable Funding,LOCAL ENHANCED SERVICES,PORTER BROOK MEDICAL CENTRE,34197581,"26,869.00",EQUITABLEFUNDQ2 202021,S11 8HN
Department of Health,NHS Sheffield CCG,10/31/2020,Clinical&Medical-Commercial Sector,PATIENT TRANSPORT,PREMIER CARE DIRECT LTD,34091580,"112,480.55",https://nww.einvoice-prod.sbs.nhs.uk:8179/invoicepdf/5cf8b6cb-2a82-57ad-a4e1-f5d5a4c7f50b,DN4 5NU
Department of Health,NHS Sheffield CCG,10/31/2020,C&M-APMS DES Extended Hours Access,GP FORWARD VIEW,PRIMARY CARE SHEFFIELD LTD,34078346,"302,608.33",,S9 4EU
Department of Health,NHS Sheffield CCG,10/31/2020,C&M-APMS DES Extended Hours Access,GP FORWARD VIEW,PRIMARY CARE SHEFFIELD LTD,34196962,"302,608.33",,S9 4EU
Department of Health,NHS Sheffield CCG,10/31/2020,C&M-GMS LES Basket of Procedures,LOCAL ENHANCED SERVICES,PRIMARY CARE SHEFFIELD LTD,34196973,"53,558.33",,S9 4EU
Department of Health,NHS Sheffield CCG,10/31/2020,Clinical&Medical-Independent Sector,MENTAL HEALTH SERVICES - OTHER,PRIMARY CARE SHEFFIELD LTD,34218729,"30,583.50",,S9 4EU
Department of Health,NHS Sheffield CCG,10/31/2020,Cont Care-Physical Disab (<65),CHC ADULT FULLY FUNDED,PRIORY GROUP LTD,34157975,"61,187.49",CHC SCHEDULE OCTOBER 2020 - Richmond Heights Care Home (The Priory Group),DL2 1TS
Department of Health,NHS Sheffield CCG,10/31/2020,C&M-PMS Contract Value,PRC DELEGATED CO-COMMISSIONING,RICHMOND MEDICAL CENTRE,34166855,"69,054.60",BABALP,S13 8NA
Department of Health,NHS Sheffield CCG,10/31/2020,C&M-PMS Funding Differential Review,PRC DELEGATED CO-COMMISSIONING,RICHMOND MEDICAL CENTRE,34166855,"1,009.63",ZFUNFP,S13 8NA
Department of Health,NHS Sheffield CCG,10/31/2020,C&M-PMS PCN DES Participation,PRC DELEGATED CO-COMMISSIONING,RICHMOND MEDICAL CENTRE,34166855,"2,559.14",PARTIP,S13 8NA
Department of Health,NHS Sheffield CCG,10/31/2020,C&M-PMS PCO Other,PRC DELEGATED CO-COMMISSIONING,RICHMOND MEDICAL CENTRE,34166855,566.10,CQCRP,S13 8NA
Department of Health,NHS Sheffield CCG,10/31/2020,C&M-PMS Prem Notional Rent,PRC DELEGATED CO-COMMISSIONING,RICHMOND MEDICAL CENTRE,34166855,"4,731.00",NRENT,S13 8NA
Department of Health,NHS Sheffield CCG,10/31/2020,C&M-PMS Prem Rates,PRC DELEGATED CO-COMMISSIONING,RICHMOND MEDICAL CENTRE,34166855,"1,509.00",RANDRP,S13 8NA
Department of Health,NHS Sheffield CCG,10/31/2020,C&M-PMS QOF Aspiration,PRC DELEGATED CO-COMMISSIONING,RICHMOND MEDICAL CENTRE,34166855,"7,878.95",QUASPP,S13 8NA
Department of Health,NHS Sheffield CCG,10/31/2020,Cont Care-Physical Disab (<65),CHC ADULT FULLY FUNDED,ROSEBERRY CARE CENTRES,34157986,"40,165.57",CHC SCHEDULE OCTOBER 2020 - Chapel Lodge Nursing Home (Roseberry),S35 2XF
Department of Health,NHS Sheffield CCG,10/31/2020,Cont Care-Physical Disab (<65),CHC ADULT FULLY FUNDED,ROSEBERRY CARE CENTRES,34157987,"42,715.42",CHC SCHEDULE OCTOBER 2020 - Haythorne Place Nursing Home (Roseberry),S5 6AB
Department of Health,NHS Sheffield CCG,10/31/2020,Cont Care-Physical Disab (<65),CHC ADULT FULLY FUNDED,ROSEBERRY CARE CENTRES,34157988,"25,298.13",CHC SCHEDULE OCTOBER 2020 - Moorend Place Nursing Home (Roseberry),S10 1GE
Department of Health,NHS Sheffield CCG,10/31/2020,Cont Care-Physical Disab (<65),CHC ADULT FULLY FUNDED,ROSEBERRY CARE CENTRES,34157996,"48,549.03",CHC SCHEDULE OCTOBER 2020 - Norbury Court Care Centre (Roseberry),S4 7AJ
Department of Health,NHS Sheffield CCG,10/31/2020,Cont Care-Funded Nursing Care Allow,FUNDED NURSING CARE,ROSEBERRY CARE CENTRES,34170683,"25,861.54",FNC SCHEDULE OCTOBER 2020 - Haythorne Place Nursing Home (Roseberry),S5 6AB
Department of Health,NHS Sheffield CCG,10/31/2020,Hcare Srv Rec Fdtn Trust-Contract Baseline,BEREAVEMENT SERVICE,ROTHERHAM DONCASTER AND SOUTH HUMBER NHS FOUNDATION TRUST,34236817,"896,435.00",,DN4 8QN
Department of Health,NHS Sheffield CCG,10/31/2020,Hcare Srv Rec NHS Trust-Contract Baseline,BEREAVEMENT SERVICE,ROTHERHAM DONCASTER AND SOUTH HUMBER NHS FOUNDATION TRUST,34236818,"465,935.00",,DN4 8QN
Department of Health,NHS Sheffield CCG,10/31/2020,Hcare Srv Rec Fdtn Trust-Contract Baseline,BEREAVEMENT SERVICE,ROTHERHAM NHS FOUNDATION TRUST,34236825,"957,267.00",,S60 2UD
Department of Health,NHS Sheffield CCG,10/31/2020,Hcare Srv Rec Fdtn Trust-Contract Baseline,BEREAVEMENT SERVICE,ROTHERHAM NHS FOUNDATION TRUST,34236826,"3,329,934.00",,S60 2TY
Department of Health,NHS Sheffield CCG,10/31/2020,Hcare Srv Rec Fdtn Trust-Contract Baseline,ACUTE COMMISSIONING,ROTHERHAM NHS FOUNDATION TRUST,34236835,"618,988.29",,S60 2UD
Department of Health,NHS Sheffield CCG,10/31/2020,C&M-APMS OOH Opt Outs,PRC DELEGATED CO-COMMISSIONING,RUSTLINGS ROAD MEDICAL CENTRE,34166859,4.29,APMOOA,S11 7AB
Department of Health,NHS Sheffield CCG,10/31/2020,C&M-PMS Contract Value,PRC DELEGATED CO-COMMISSIONING,RUSTLINGS ROAD MEDICAL CENTRE,34166859,"28,963.43",BABALP,S11 7AB
Department of Health,NHS Sheffield CCG,10/31/2020,C&M-PMS Funding Differential Review,PRC DELEGATED CO-COMMISSIONING,RUSTLINGS ROAD MEDICAL CENTRE,34166859,565.04,ZFUNFP,S11 7AB
Department of Health,NHS Sheffield CCG,10/31/2020,C&M-PMS PCN DES Participation,PRC DELEGATED CO-COMMISSIONING,RUSTLINGS ROAD MEDICAL CENTRE,34166859,"1,072.99",PARTIP,S11 7AB
Department of Health,NHS Sheffield CCG,10/31/2020,C&M-PMS PCO Other,PRC DELEGATED CO-COMMISSIONING,RUSTLINGS ROAD MEDICAL CENTRE,34166859,316.40,CQCRP,S11 7AB
Department of Health,NHS Sheffield CCG,10/31/2020,C&M-PMS Prem Notional Rent,PRC DELEGATED CO-COMMISSIONING,RUSTLINGS ROAD MEDICAL CENTRE,34166859,"1,312.50",NRENT,S11 7AB
Department of Health,NHS Sheffield CCG,10/31/2020,C&M-PMS Prem Water Rates,PRC DELEGATED CO-COMMISSIONING,RUSTLINGS ROAD MEDICAL CENTRE,34166859,78.58,RAMWP,S11 7AB
Department of Health,NHS Sheffield CCG,10/31/2020,C&M-PMS QOF Aspiration,PRC DELEGATED CO-COMMISSIONING,RUSTLINGS ROAD MEDICAL CENTRE,34166859,"2,857.73",QUASPP,S11 7AB
Department of Health,NHS Sheffield CCG,10/31/2020,C&M-PMS Contract Value,PRC DELEGATED CO-COMMISSIONING,SELBORNE ROAD MEDICAL CENTRE,34166857,"19,674.52",BABALP,S10 5ND
Department of Health,NHS Sheffield CCG,10/31/2020,C&M-PMS Funding Differential Review,PRC DELEGATED CO-COMMISSIONING,SELBORNE ROAD MEDICAL CENTRE,34166857,478.42,ZFUNFP,S10 5ND
Department of Health,NHS Sheffield CCG,10/31/2020,C&M-PMS PCN DES Participation,PRC DELEGATED CO-COMMISSIONING,SELBORNE ROAD MEDICAL CENTRE,34166857,732.30,PARTIP,S10 5ND
Department of Health,NHS Sheffield CCG,10/31/2020,C&M-PMS PCO Other,PRC DELEGATED CO-COMMISSIONING,SELBORNE ROAD MEDICAL CENTRE,34166857,203.80,CQCRP,S10 5ND
Department of Health,NHS Sheffield CCG,10/31/2020,C&M-PMS Prem Notional Rent,PRC DELEGATED CO-COMMISSIONING,SELBORNE ROAD MEDICAL CENTRE,34166857,"1,735.42",NRENT,S10 5ND
Department of Health,NHS Sheffield CCG,10/31/2020,C&M-PMS Prem Rates,PRC DELEGATED CO-COMMISSIONING,SELBORNE ROAD MEDICAL CENTRE,34166857,611.00,RANDRP,S10 5ND
Department of Health,NHS Sheffield CCG,10/31/2020,C&M-PMS QOF Aspiration,PRC DELEGATED CO-COMMISSIONING,SELBORNE ROAD MEDICAL CENTRE,34166857,"1,877.44",QUASPP,S10 5ND
Department of Health,NHS Sheffield CCG,10/31/2020,Cont Care-Physical Disab (<65),CHC ADULT FULLY FUNDED,SEVEN HILLS NURSING HOME,34157978,"71,754.09",CHC SCHEDULE OCTOBER 2020 - Seven Hills Nursing Home,S11 9AA
Department of Health,NHS Sheffield CCG,10/31/2020,C&M-GMS Cost of Drugs -Prescribing,LOCAL ENHANCED SERVICES,SHARROW LANE MEDICAL CENTRE,34381441,85.55,DRGP,S11 8AN
Department of Health,NHS Sheffield CCG,10/31/2020,C&M-GMS Global Sum,PRC DELEGATED CO-COMMISSIONING,SHARROW LANE MEDICAL CENTRE,34381441,"25,224.04",GSUMG,S11 8AN
Department of Health,NHS Sheffield CCG,10/31/2020,C&M-GMS PCN DES Participation,PRC DELEGATED CO-COMMISSIONING,SHARROW LANE MEDICAL CENTRE,34381441,976.69,PARTIG,S11 8AN
Department of Health,NHS Sheffield CCG,10/31/2020,C&M-GMS PCO Other,PRC DELEGATED CO-COMMISSIONING,SHARROW LANE MEDICAL CENTRE,34381441,274.00,CQCRG,S11 8AN
Department of Health,NHS Sheffield CCG,10/31/2020,C&M-GMS Prem Notional Rent,PRC DELEGATED CO-COMMISSIONING,SHARROW LANE MEDICAL CENTRE,34381441,"2,741.67",NRENT,S11 8AN
Department of Health,NHS Sheffield CCG,10/31/2020,C&M-GMS Prof Fees Prescribing,PRC DELEGATED CO-COMMISSIONING,SHARROW LANE MEDICAL CENTRE,34381441,25.33,DRGPPF,S11 8AN
Department of Health,NHS Sheffield CCG,10/31/2020,C&M-GMS QOF Aspiration,PRC DELEGATED CO-COMMISSIONING,SHARROW LANE MEDICAL CENTRE,34381441,"2,676.86",QUASPG,S11 8AN
Department of Health,NHS Sheffield CCG,10/31/2020,Hcare Srv Rec Fdtn Trust-Contract Baseline,BEREAVEMENT SERVICE,SHEFFIELD CHILDRENS NHS FOUNDATION TRUST,34236813,"519,230.00",,S10 2TH
Department of Health,NHS Sheffield CCG,10/31/2020,Hcare Srv Rec Fdtn Trust-Contract Baseline,BEREAVEMENT SERVICE,SHEFFIELD CHILDRENS NHS FOUNDATION TRUST,34236814,"2,464,397.00",,S10 2TH
Department of Health,NHS Sheffield CCG,10/31/2020,Hcare Srv Rec Fdtn Trust-Contract Baseline,ACUTE CHILDRENS SERVICES,SHEFFIELD CHILDRENS NHS FOUNDATION TRUST,34236832,"3,710,348.98",,S10 2TH
Department of Health,NHS Sheffield CCG,10/31/2020,Soc Care-Support Prim Care,COMMUNITY SERVICES,SHEFFIELD CITY COUNCIL,34109290,"-113,184.00",,S1 2HH
Department of Health,NHS Sheffield CCG,10/31/2020,Soc Care-Support Prim Care,COMMUNITY SERVICES,SHEFFIELD CITY COUNCIL,34115351,"113,184.00",,S1 2HH
Department of Health,NHS Sheffield CCG,10/31/2020,Clinical&Medical-Othe Public Sector,COMMUNITY SERVICES,SHEFFIELD CITY COUNCIL,34236368,"150,416.67",,S1 1UJ
Department of Health,NHS Sheffield CCG,10/31/2020,Clinical&Medical-Othe Public Sector,MENTAL HEALTH SERVICES - COLLABORATIVE COMMISSIONING,SHEFFIELD CITY COUNCIL,34236368,"83,669.09",,S1 1UJ
Department of Health,NHS Sheffield CCG,10/31/2020,Clinical&Medical-Othe Public Sector,REABLEMENT,SHEFFIELD CITY COUNCIL,34236368,"21,808.67",,S1 1UJ
Department of Health,NHS Sheffield CCG,10/31/2020,Clinical&Medical-Othe Public Sector,SAFEGUARDING,SHEFFIELD CITY COUNCIL,34236368,"16,596.33",,S1 1UJ
Department of Health,NHS Sheffield CCG,10/31/2020,Cont Care-Physical Disab (65+),CHC ADULT FULLY FUNDED,SHEFFIELD CITY COUNCIL,34236368,"59,435.47",,S1 1UJ
Department of Health,NHS Sheffield CCG,10/31/2020,Soc Care-Joint H&C Teams/Working,INTERMEDIATE CARE,SHEFFIELD CITY COUNCIL,34236368,"151,447.58",,S1 1UJ
Department of Health,NHS Sheffield CCG,10/31/2020,Soc Care-Other Soc Care,COMMISSIONING - NON ACUTE,SHEFFIELD CITY COUNCIL,34236368,"1,635,250.00",,S1 1UJ
Department of Health,NHS Sheffield CCG,10/31/2020,Soc Care-Support Prim Care,COMMUNITY SERVICES,SHEFFIELD CITY COUNCIL,34236368,"58,000.00",,S1 1UJ
Department of Health,NHS Sheffield CCG,10/31/2020,Cont Care-Physical Disab (65+),CHC ADULT FULLY FUNDED,SHEFFIELD CITY COUNCIL,34403149,"1,045,440.45",RMT SCHEDULE OCTOBER 2020,S1 1UJ
Department of Health,NHS Sheffield CCG,10/31/2020,Cont Care- Prior Year Payments,CHC ADULT FULLY FUNDED,SHEFFIELD CITY COUNCIL,34403150,"43,272.29",RMT SCHEDULE OCTOBER 2020PY,S1 1UJ
Department of Health,NHS Sheffield CCG,10/31/2020,Cont Care- Children,CHC CHILDREN,SHEFFIELD CITY COUNCIL,34403151,"95,570.12",CHILDRENS SCHEDULE OCTOBER 2020,S1 1UJ
Department of Health,NHS Sheffield CCG,10/31/2020,Clinical&Medical-Voluntary Sector,CHILD AND ADOLESCENT MENTAL HEALTH,SHEFFIELD FUTURES,34398604,"25,600.00",,S1 4GE
Department of Health,NHS Sheffield CCG,10/31/2020,Hcare Srv Rec Fdtn Trust-Contract Baseline,BEREAVEMENT SERVICE,SHEFFIELD HEALTH & SOCIAL CARE NHS FOUNDATION TRUST,34236815,"565,859.00",,S10 3TH
Department of Health,NHS Sheffield CCG,10/31/2020,Hcare Srv Rec Fdtn Trust-Contract Baseline,BEREAVEMENT SERVICE,SHEFFIELD HEALTH & SOCIAL CARE NHS FOUNDATION TRUST,34236816,"886,359.00",,S10 3TH
Department of Health,NHS Sheffield CCG,10/31/2020,Hcare Srv Rec Fdtn Trust-Contract Baseline,MENTAL HEALTH CONTRACTS,SHEFFIELD HEALTH & SOCIAL CARE NHS FOUNDATION TRUST,34236833,"8,945,989.53",,S10 3TH
Department of Health,NHS Sheffield CCG,10/31/2020,PREPYMT OVERSEAS NON EEA PATIENTS,CHC ADULT FULLY FUNDED,SHEFFIELD TEACHING HOSPITALS NHS FOUNDATION TRUST,34196837,"37,511.62",,S5 7AU
Department of Health,NHS Sheffield CCG,10/31/2020,Hcare Srv Rec Fdtn Trust-Contract Baseline,BEREAVEMENT SERVICE,SHEFFIELD TEACHING HOSPITALS NHS FOUNDATION TRUST,34236823,"3,506,666.00",,S5 7AU
Department of Health,NHS Sheffield CCG,10/31/2020,Hcare Srv Rec Fdtn Trust-Contract Baseline,BEREAVEMENT SERVICE,SHEFFIELD TEACHING HOSPITALS NHS FOUNDATION TRUST,34236824,"7,124,166.00",,S5 7AU
Department of Health,NHS Sheffield CCG,10/31/2020,Hcare Srv Rec Fdtn Trust-Contract Baseline,ACUTE COMMISSIONING,SHEFFIELD TEACHING HOSPITALS NHS FOUNDATION TRUST,34236834,"37,588,203.57",,S5 7AU
Department of Health,NHS Sheffield CCG,10/31/2020,C&M-GMS Cost of Drugs -Prescribing,LOCAL ENHANCED SERVICES,SHIREGREEN MEDICAL CENTRE,34381447,265.67,DRGP,S5 0RG
Department of Health,NHS Sheffield CCG,10/31/2020,C&M-GMS Global Sum,PRC DELEGATED CO-COMMISSIONING,SHIREGREEN MEDICAL CENTRE,34381447,"59,228.26",GSUMG,S5 0RG
Department of Health,NHS Sheffield CCG,10/31/2020,C&M-GMS PCN DES Participation,PRC DELEGATED CO-COMMISSIONING,SHIREGREEN MEDICAL CENTRE,34381447,"2,389.19",PARTIG,S5 0RG
Department of Health,NHS Sheffield CCG,10/31/2020,C&M-GMS PCO Other,PRC DELEGATED CO-COMMISSIONING,SHIREGREEN MEDICAL CENTRE,34381447,496.00,CQCRG,S5 0RG
Department of Health,NHS Sheffield CCG,10/31/2020,C&M-GMS Prem Cost Rent,PRC DELEGATED CO-COMMISSIONING,SHIREGREEN MEDICAL CENTRE,34381447,"1,792.33",COST,S5 0RG
Department of Health,NHS Sheffield CCG,10/31/2020,C&M-GMS Prem Notional Rent,PRC DELEGATED CO-COMMISSIONING,SHIREGREEN MEDICAL CENTRE,34381447,"5,375.00",NRENT,S5 0RG
Department of Health,NHS Sheffield CCG,10/31/2020,C&M-GMS Prof Fees Prescribing,PRC DELEGATED CO-COMMISSIONING,SHIREGREEN MEDICAL CENTRE,34381447,62.18,DRGPPF,S5 0RG
Department of Health,NHS Sheffield CCG,10/31/2020,C&M-GMS QOF Aspiration,PRC DELEGATED CO-COMMISSIONING,SHIREGREEN MEDICAL CENTRE,34381447,"6,876.28",QUASPG,S5 0RG
Department of Health,NHS Sheffield CCG,10/31/2020,C&M-PMS Contract Value,PRC DELEGATED CO-COMMISSIONING,SLOAN MEDICAL CENTRE,34166861,"97,623.77",BABALP,S8 0YH
Department of Health,NHS Sheffield CCG,10/31/2020,C&M-PMS Funding Differential Review,PRC DELEGATED CO-COMMISSIONING,SLOAN MEDICAL CENTRE,34166861,"1,677.40",ZFUNFP,S8 0YH
Department of Health,NHS Sheffield CCG,10/31/2020,C&M-PMS PCN DES Participation,PRC DELEGATED CO-COMMISSIONING,SLOAN MEDICAL CENTRE,34166861,"3,662.66",PARTIP,S8 0YH
Department of Health,NHS Sheffield CCG,10/31/2020,C&M-PMS PCO Locum Adop/Pat/Mat,PRC DELEGATED CO-COMMISSIONING,SLOAN MEDICAL CENTRE,34166861,"39,173.72",SICKC,S8 0YH
Department of Health,NHS Sheffield CCG,10/31/2020,C&M-PMS Prem Actual Rent,PRC DELEGATED CO-COMMISSIONING,SLOAN MEDICAL CENTRE,34166861,"15,970.83",RENT,S8 0YH
Department of Health,NHS Sheffield CCG,10/31/2020,C&M-PMS Prem Notional Rent,PRC DELEGATED CO-COMMISSIONING,SLOAN MEDICAL CENTRE,34166861,747.50,NRENT,S8 0YH
Department of Health,NHS Sheffield CCG,10/31/2020,C&M-PMS Prem Rates,PRC DELEGATED CO-COMMISSIONING,SLOAN MEDICAL CENTRE,34166861,"3,478.00",RANDRP,S8 0YH
Department of Health,NHS Sheffield CCG,10/31/2020,C&M-PMS QOF Aspiration,PRC DELEGATED CO-COMMISSIONING,SLOAN MEDICAL CENTRE,34166861,"9,977.55",QUASPP,S8 0YH
Department of Health,NHS Sheffield CCG,10/31/2020,C&M-PMS Contract Value,PRC DELEGATED CO-COMMISSIONING,SOTHALL MEDICAL CENTRE,34166863,"72,255.57",BABALP,S20 1HQ
Department of Health,NHS Sheffield CCG,10/31/2020,C&M-PMS Funding Differential Review,PRC DELEGATED CO-COMMISSIONING,SOTHALL MEDICAL CENTRE,34166863,"1,401.44",ZFUNFP,S20 1HQ
Department of Health,NHS Sheffield CCG,10/31/2020,C&M-PMS PCN DES Participation,PRC DELEGATED CO-COMMISSIONING,SOTHALL MEDICAL CENTRE,34166863,"2,710.63",PARTIP,S20 1HQ
Department of Health,NHS Sheffield CCG,10/31/2020,C&M-PMS PCO Locum Adop/Pat/Mat,PRC DELEGATED CO-COMMISSIONING,SOTHALL MEDICAL CENTRE,34166863,"15,334.37",SICKC,S20 1HQ
Department of Health,NHS Sheffield CCG,10/31/2020,C&M-PMS Prem Notional Rent,PRC DELEGATED CO-COMMISSIONING,SOTHALL MEDICAL CENTRE,34166863,"5,116.67",NRENT,S20 1HQ
Department of Health,NHS Sheffield CCG,10/31/2020,C&M-PMS Prem Rates,PRC DELEGATED CO-COMMISSIONING,SOTHALL MEDICAL CENTRE,34166863,"1,435.00",RANDRP,S20 1HQ
Department of Health,NHS Sheffield CCG,10/31/2020,C&M-PMS Prem Water Rates,PRC DELEGATED CO-COMMISSIONING,SOTHALL MEDICAL CENTRE,34166863,250.56,RAMWP,S20 1HQ
Department of Health,NHS Sheffield CCG,10/31/2020,C&M-PMS QOF Aspiration,PRC DELEGATED CO-COMMISSIONING,SOTHALL MEDICAL CENTRE,34166863,"8,491.33",QUASPP,S20 1HQ
Department of Health,NHS Sheffield CCG,10/31/2020,Cont Care- Adult 100% Fully Funded,CHC ADULT FULLY FUNDED,SOUTH YORKSHIRE HOUSING ASSOCIATION LTD,34144177,"25,500.00",Birch Avenue - Additional Staff October 20,S1 4HF
Department of Health,NHS Sheffield CCG,10/31/2020,Cont Care- Adult 100% Fully Funded,CHC ADULT FULLY FUNDED,SOUTH YORKSHIRE HOUSING ASSOCIATION LTD,34144178,"46,763.59",Birch Avenue - October 20,S1 4HF
Department of Health,NHS Sheffield CCG,10/31/2020,Clinical&Medical-Independent Sector,MENTAL HEALTH CONTRACTS,SOUTH YORKSHIRE HOUSING ASSOCIATION LTD,34144180,"34,434.83",Lister Avenue - October 20,S1 4HF
Department of Health,NHS Sheffield CCG,10/31/2020,Cont Care-Physical Disab (<65),CHC ADULT FULLY FUNDED,SOUTH YORKSHIRE HOUSING ASSOCIATION LTD,34157963,"59,083.81",CHC SCHEDULE OCTOBER 2020 - Birch Avenue Nursing Home (SYHA),S35 1RQ
Department of Health,NHS Sheffield CCG,10/31/2020,Clinical&Medical-Voluntary Sector,COLLABORATIVE COMMISSIONING,SOUTH YORKSHIRE HOUSING ASSOCIATION LTD,34310965,"139,149.72",,S1 4EB
Department of Health,NHS Sheffield CCG,10/31/2020,C&M-PMS Contract Value,PRC DELEGATED CO-COMMISSIONING,SOUTHEY GREEN MEDICAL CENTRE,34166865,"25,424.03",BABALP,S5 7QB
Department of Health,NHS Sheffield CCG,10/31/2020,C&M-PMS Funding Differential Review,PRC DELEGATED CO-COMMISSIONING,SOUTHEY GREEN MEDICAL CENTRE,34166865,612.28,ZFUNFP,S5 7QB
Department of Health,NHS Sheffield CCG,10/31/2020,C&M-PMS Out of Hours Opt Outs,PRC DELEGATED CO-COMMISSIONING,SOUTHEY GREEN MEDICAL CENTRE,34166865,1.73,APMOOH,S5 7QB
Department of Health,NHS Sheffield CCG,10/31/2020,C&M-PMS PCN DES Participation,PRC DELEGATED CO-COMMISSIONING,SOUTHEY GREEN MEDICAL CENTRE,34166865,951.90,PARTIP,S5 7QB
Department of Health,NHS Sheffield CCG,10/31/2020,C&M-PMS Prem Notional Rent,PRC DELEGATED CO-COMMISSIONING,SOUTHEY GREEN MEDICAL CENTRE,34166865,"3,362.50",NRENT,S5 7QB
Department of Health,NHS Sheffield CCG,10/31/2020,C&M-PMS Prem Rates,PRC DELEGATED CO-COMMISSIONING,SOUTHEY GREEN MEDICAL CENTRE,34166865,"1,198.00",RANDRP,S5 7QB
Department of Health,NHS Sheffield CCG,10/31/2020,C&M-PMS QOF Aspiration,PRC DELEGATED CO-COMMISSIONING,SOUTHEY GREEN MEDICAL CENTRE,34166865,"2,637.54",QUASPP,S5 7QB
Department of Health,NHS Sheffield CCG,10/31/2020,Clinical&Medical-Independent Sector,ACUTE COMMISSIONING,SPAMEDICA LTD,34310930,"143,361.84",https://nww.einvoice-prod.sbs.nhs.uk:8179/invoicepdf/bc863101-f2f4-592c-b6e7-a5b99ec326c8,M15 4SQ
Department of Health,NHS Sheffield CCG,10/31/2020,Clinical&Medical-Voluntary Sector,HOSPICES,ST LUKES HOSPICE,34115408,"44,574.09",,S11 9NE
Department of Health,NHS Sheffield CCG,10/31/2020,C&M-GMS Global Sum,PRC DELEGATED CO-COMMISSIONING,STANNINGTON MEDICAL CENTRE,34395294,"26,905.49",GSUMG,S6 6BX
Department of Health,NHS Sheffield CCG,10/31/2020,C&M-GMS PCO Other,PRC DELEGATED CO-COMMISSIONING,STANNINGTON MEDICAL CENTRE,34395294,243.40,CQCRG,S6 6BX
Department of Health,NHS Sheffield CCG,10/31/2020,C&M-GMS Prem Notional Rent,PRC DELEGATED CO-COMMISSIONING,STANNINGTON MEDICAL CENTRE,34395294,"2,575.00",NRENT,S6 6BX
Department of Health,NHS Sheffield CCG,10/31/2020,C&M-GMS Prem Rates,PRC DELEGATED CO-COMMISSIONING,STANNINGTON MEDICAL CENTRE,34395294,500.00,RANDR,S6 6BX
Department of Health,NHS Sheffield CCG,10/31/2020,C&M-GMS Prem Water Rates,PRC DELEGATED CO-COMMISSIONING,STANNINGTON MEDICAL CENTRE,34395294,189.37,RAMW,S6 6BX
Department of Health,NHS Sheffield CCG,10/31/2020,C&M-GMS QOF Aspiration,PRC DELEGATED CO-COMMISSIONING,STANNINGTON MEDICAL CENTRE,34395294,"3,017.79",QUASPG,S6 6BX
Department of Health,NHS Sheffield CCG,10/31/2020,C&M-GMS Cost of Drugs -Prescribing,LOCAL ENHANCED SERVICES,STONECROFT MEDICAL CENTRE,34381449,49.67,DRGP,S12 2LJ
Department of Health,NHS Sheffield CCG,10/31/2020,C&M-GMS Global Sum,PRC DELEGATED CO-COMMISSIONING,STONECROFT MEDICAL CENTRE,34381449,"34,360.14",GSUMG,S12 2LJ
Department of Health,NHS Sheffield CCG,10/31/2020,C&M-GMS PCN DES Participation,PRC DELEGATED CO-COMMISSIONING,STONECROFT MEDICAL CENTRE,34381449,"1,336.08",PARTIG,S12 2LJ
Department of Health,NHS Sheffield CCG,10/31/2020,C&M-GMS PCO Other,PRC DELEGATED CO-COMMISSIONING,STONECROFT MEDICAL CENTRE,34381449,286.80,CQCRG,S12 2LJ
Department of Health,NHS Sheffield CCG,10/31/2020,C&M-GMS Prem Notional Rent,PRC DELEGATED CO-COMMISSIONING,STONECROFT MEDICAL CENTRE,34381449,"2,808.33",NRENT,S12 2LJ
Department of Health,NHS Sheffield CCG,10/31/2020,C&M-GMS Prem Rates,PRC DELEGATED CO-COMMISSIONING,STONECROFT MEDICAL CENTRE,34381449,"1,235.00",RANDR,S12 2LJ
Department of Health,NHS Sheffield CCG,10/31/2020,C&M-GMS Prof Fees Prescribing,PRC DELEGATED CO-COMMISSIONING,STONECROFT MEDICAL CENTRE,34381449,34.55,DRGPPF,S12 2LJ
Department of Health,NHS Sheffield CCG,10/31/2020,C&M-GMS QOF Aspiration,PRC DELEGATED CO-COMMISSIONING,STONECROFT MEDICAL CENTRE,34381449,"4,246.35",QUASPG,S12 2LJ
Department of Health,NHS Sheffield CCG,10/31/2020,Clinical&Medical-Independent Sector,MENTAL HEALTH CONTRACTS,SUSASH GB LTD T/A EAGLE HOUSE,34144179,"30,091.75",Eagle House - October 20,S11 8NP
Department of Health,NHS Sheffield CCG,10/31/2020,Cont Care-Physical Disab (<65),CHC ADULT FULLY FUNDED,SUSASH GB LTD T/A EAGLE HOUSE,34157998,"25,608.00",CHC SCHEDULE OCTOBER 2020 - Eagle House Nursing Home (Susash GB Ltd),S11 8NP
Department of Health,NHS Sheffield CCG,10/31/2020,C&M-GMS Global Sum,PRC DELEGATED CO-COMMISSIONING,TOTLEY RISE MEDICAL CENTRE,34381452,"27,436.83",GSUMG,S17 4DQ
Department of Health,NHS Sheffield CCG,10/31/2020,C&M-GMS PCN DES Participation,PRC DELEGATED CO-COMMISSIONING,TOTLEY RISE MEDICAL CENTRE,34381452,"1,063.31",PARTIG,S17 4DQ
Department of Health,NHS Sheffield CCG,10/31/2020,C&M-GMS Prem Notional Rent,PRC DELEGATED CO-COMMISSIONING,TOTLEY RISE MEDICAL CENTRE,34381452,"1,604.17",NRENT,S17 4DQ
Department of Health,NHS Sheffield CCG,10/31/2020,C&M-GMS Prem Rates,PRC DELEGATED CO-COMMISSIONING,TOTLEY RISE MEDICAL CENTRE,34381452,159.00,RANDR,S17 4DQ
Department of Health,NHS Sheffield CCG,10/31/2020,C&M-GMS QOF Aspiration,PRC DELEGATED CO-COMMISSIONING,TOTLEY RISE MEDICAL CENTRE,34381452,"2,402.35",QUASPG,S17 4DQ
Department of Health,NHS Sheffield CCG,10/31/2020,C&M-GMS Cost of Drugs -Prescribing,LOCAL ENHANCED SERVICES,TRAMWAYS MEDICAL CENTRE,34381454,"1,857.07",DRGP,S6 4JQ
Department of Health,NHS Sheffield CCG,10/31/2020,C&M-GMS Global Sum,PRC DELEGATED CO-COMMISSIONING,TRAMWAYS MEDICAL CENTRE,34381454,"63,627.17",GSUMG,S6 4JQ
Department of Health,NHS Sheffield CCG,10/31/2020,C&M-GMS PCN DES Participation,PRC DELEGATED CO-COMMISSIONING,TRAMWAYS MEDICAL CENTRE,34381454,"2,516.92",PARTIG,S6 4JQ
Department of Health,NHS Sheffield CCG,10/31/2020,C&M-GMS PCO Other,PRC DELEGATED CO-COMMISSIONING,TRAMWAYS MEDICAL CENTRE,34381454,530.40,CQCRG,S6 4JQ
Department of Health,NHS Sheffield CCG,10/31/2020,C&M-GMS Prem Cost Rent,PRC DELEGATED CO-COMMISSIONING,TRAMWAYS MEDICAL CENTRE,34381454,"4,012.75",COST,S6 4JQ
Department of Health,NHS Sheffield CCG,10/31/2020,C&M-GMS Prem Rates,PRC DELEGATED CO-COMMISSIONING,TRAMWAYS MEDICAL CENTRE,34381454,"1,310.00",RANDR,S6 4JQ
Department of Health,NHS Sheffield CCG,10/31/2020,C&M-GMS Prof Fees Prescribing,PRC DELEGATED CO-COMMISSIONING,TRAMWAYS MEDICAL CENTRE,34381454,96.72,DRGPPF,S6 4JQ
Department of Health,NHS Sheffield CCG,10/31/2020,C&M-GMS QOF Aspiration,PRC DELEGATED CO-COMMISSIONING,TRAMWAYS MEDICAL CENTRE,34381454,"5,986.86",QUASPG,S6 4JQ
Department of Health,NHS Sheffield CCG,10/31/2020,C&M-GMS IT Comm Servs -GP Practices,PRIMARY CARE IT,TRUSTMARQUE SOLUTIONS LTD,34083465,"1,656.00",Audio Conf ShrdSvr ALNG SubsVL MVL PerUsr for 36 Months,YO41 1LZ
Department of Health,NHS Sheffield CCG,10/31/2020,C&M-GMS IT Comm Servs -GP Practices,PRIMARY CARE IT,TRUSTMARQUE SOLUTIONS LTD,34083465,"275,328.00",EntMobandSecE3Full ShrdSvr ALNG SubsVL MVL PerUsr for 36 months,YO41 1LZ
Department of Health,NHS Sheffield CCG,10/31/2020,C&M-GMS IT Comm Servs -GP Practices,PRIMARY CARE IT,TRUSTMARQUE SOLUTIONS LTD,34083465,"311,464.80",M365AppsForEnterprise ShrdSvr ALNG for 36 months,YO41 1LZ
Department of Health,NHS Sheffield CCG,10/31/2020,C&M-GMS IT Comm Servs -GP Practices,PRIMARY CARE IT,TRUSTMARQUE SOLUTIONS LTD,34083465,"180,684.00",O365E1 ShrdSvr ALNG SubsVL MVL PerUsr for 36 Months,YO41 1LZ
Department of Health,NHS Sheffield CCG,10/31/2020,C&M-GMS IT Comm Servs -GP Practices,PRIMARY CARE IT,TRUSTMARQUE SOLUTIONS LTD,34083465,296.28,O365E3 ShrdSvr ALNG SubsVL MVL PerUsr for 36 Months,YO41 1LZ
Department of Health,NHS Sheffield CCG,10/31/2020,C&M-GMS IT Comm Servs -GP Practices,PRIMARY CARE IT,TRUSTMARQUE SOLUTIONS LTD,34083465,33.12,WinE5AddOntoWinEntperDVC ALNG SubsVL MVL AddOn for 36 months,YO41 1LZ
Department of Health,NHS Sheffield CCG,10/31/2020,C&M-GMS IT Comm Servs -GP Practices,PRIMARY CARE IT,TRUSTMARQUE SOLUTIONS LTD,34083465,38.16,WinVDAE5StpFrmWinVDAperDVC Alng MonthlySub Per User for 36 months,YO41 1LZ
Department of Health,NHS Sheffield CCG,10/31/2020,C&M-GMS IT Comm Servs -GP Practices,PRIMARY CARE IT,TRUSTMARQUE SOLUTIONS LTD,34083465,"153,900.07",https://nww.einvoice-prod.sbs.nhs.uk:8179/invoicepdf/91caee2d-032c-5d56-bb0b-a5e06957f907,YO41 1LZ
Department of Health,NHS Sheffield CCG,10/31/2020,Computer Software/License,IM&T,TRUSTMARQUE SOLUTIONS LTD,34083465,"57,600.00",EntMobandSecE3Full ShrdSvr ALNG SubsVL MVL PerUsr for 36 months,YO41 1LZ
Department of Health,NHS Sheffield CCG,10/31/2020,Computer Software/License,IM&T,TRUSTMARQUE SOLUTIONS LTD,34083465,"65,160.00",M365AppsForEnterprise ShrdSvr ALNG for 36 months,YO41 1LZ
Department of Health,NHS Sheffield CCG,10/31/2020,Computer Software/License,IM&T,TRUSTMARQUE SOLUTIONS LTD,34083465,"37,800.00",O365E1 ShrdSvr ALNG SubsVL MVL PerUsr for 36 Months,YO41 1LZ
Department of Health,NHS Sheffield CCG,10/31/2020,Computer Software/License,IM&T,TRUSTMARQUE SOLUTIONS LTD,34083465,"32,112.00",https://nww.einvoice-prod.sbs.nhs.uk:8179/invoicepdf/91caee2d-032c-5d56-bb0b-a5e06957f907,YO41 1LZ
Department of Health,NHS Sheffield CCG,10/31/2020,C&M-PMS Contract Value,PRC DELEGATED CO-COMMISSIONING,UNIVERSITY HEALTH SERVICE,34166868,"-14,869.61",BABALP,S3 7QP
Department of Health,NHS Sheffield CCG,10/31/2020,C&M-PMS DES Extended Hours Access,PRC DELEGATED CO-COMMISSIONING,UNIVERSITY HEALTH SERVICE,34166868,"-4,929.28",EXTHDP,S3 7QP
Department of Health,NHS Sheffield CCG,10/31/2020,C&M-PMS GP Statutory Levy,PRC DELEGATED CO-COMMISSIONING,UNIVERSITY HEALTH SERVICE,34166868,"-1,411.59",STATL,S3 7QP
Department of Health,NHS Sheffield CCG,10/31/2020,C&M-PMS Out of Hours Opt Outs,PRC DELEGATED CO-COMMISSIONING,UNIVERSITY HEALTH SERVICE,34166868,"-9,794.98",APMOOH,S3 7QP
Department of Health,NHS Sheffield CCG,10/31/2020,C&M-PMS PCN DES Clinical Director,PRC DELEGATED CO-COMMISSIONING,UNIVERSITY HEALTH SERVICE,34166868,"-2,454.44",CLINDP,S3 7QP
Department of Health,NHS Sheffield CCG,10/31/2020,C&M-PMS PCN DES PCN support,LOCAL ENHANCED SERVICES,UNIVERSITY HEALTH SERVICE,34166868,"-5,099.25",PCNSUP,S3 7QP
Department of Health,NHS Sheffield CCG,10/31/2020,C&M-PMS PCN DES Participation,PRC DELEGATED CO-COMMISSIONING,UNIVERSITY HEALTH SERVICE,34166868,"-3,871.12",PARTIP,S3 7QP
Department of Health,NHS Sheffield CCG,10/31/2020,C&M-PMS Contract Value,PRC DELEGATED CO-COMMISSIONING,UNIVERSITY HEALTH SERVICE,34187742,"205,419.18",BABALP,S3 7QP
Department of Health,NHS Sheffield CCG,10/31/2020,C&M-PMS DES Extended Hours Access,PRC DELEGATED CO-COMMISSIONING,UNIVERSITY HEALTH SERVICE,34187742,"9,865.48",EXTHDP,S3 7QP
Department of Health,NHS Sheffield CCG,10/31/2020,C&M-PMS Out of Hours Opt Outs,PRC DELEGATED CO-COMMISSIONING,UNIVERSITY HEALTH SERVICE,34187742,712.50,APMOOH,S3 7QP
Department of Health,NHS Sheffield CCG,10/31/2020,C&M-PMS PCN DES Clinical Director,PRC DELEGATED CO-COMMISSIONING,UNIVERSITY HEALTH SERVICE,34187742,"4,902.14",CLINDP,S3 7QP
Department of Health,NHS Sheffield CCG,10/31/2020,C&M-PMS PCN DES PCN support,LOCAL ENHANCED SERVICES,UNIVERSITY HEALTH SERVICE,34187742,"10,198.63",PCNSUP,S3 7QP
Department of Health,NHS Sheffield CCG,10/31/2020,C&M-PMS PCN DES Participation,PRC DELEGATED CO-COMMISSIONING,UNIVERSITY HEALTH SERVICE,34187742,"7,748.83",PARTIP,S3 7QP
Department of Health,NHS Sheffield CCG,10/31/2020,C&M-PMS PCO Locum Sickness,PRC DELEGATED CO-COMMISSIONING,UNIVERSITY HEALTH SERVICE,34187742,"10,781.08",SICKS,S3 7QP
Department of Health,NHS Sheffield CCG,10/31/2020,C&M-PMS Prem Notional Rent,PRC DELEGATED CO-COMMISSIONING,UNIVERSITY HEALTH SERVICE,34187742,"15,833.33",NRENT,S3 7QP
Department of Health,NHS Sheffield CCG,10/31/2020,C&M-PMS Prem Water Rates,PRC DELEGATED CO-COMMISSIONING,UNIVERSITY HEALTH SERVICE,34187742,896.06,RAMWP,S3 7QP
Department of Health,NHS Sheffield CCG,10/31/2020,C&M-PMS QOF Aspiration,PRC DELEGATED CO-COMMISSIONING,UNIVERSITY HEALTH SERVICE,34187742,"7,529.34",QUASPP,S3 7QP
Department of Health,NHS Sheffield CCG,10/31/2020,C&M-GMS LES Equitable Funding,LOCAL ENHANCED SERVICES,UNIVERSITY HEALTH SERVICE,34197642,"31,911.00",EQUITABLEFUNDQ2 202021,S3 7QP
Department of Health,NHS Sheffield CCG,10/31/2020,C&M-PMS LES Primary Care Offer,LOCAL ENHANCED SERVICES,UNIVERSITY HEALTH SERVICE,34214564,"25,529.00",QUALITY CONTRACT Q2 202021,S3 7QP
Department of Health,NHS Sheffield CCG,10/31/2020,Other Research Exp,Nursing and Quality Programme,UNIVERSITY OF SHEFFIELD,34078345,"184,856.99",,S10 2TN
Department of Health,NHS Sheffield CCG,10/31/2020,Other Research Exp,Nursing and Quality Programme,UNIVERSITY OF SHEFFIELD,34310977,"58,413.94",,S10 2TN
Department of Health,NHS Sheffield CCG,10/31/2020,C&M-GMS GP Statutory Levy,PRC DELEGATED CO-COMMISSIONING,UPPERTHORPE MEDICAL CENTRE,34381456,-428.37,STATL,S6 3FT
Department of Health,NHS Sheffield CCG,10/31/2020,C&M-GMS PCN DES Participation,PRC DELEGATED CO-COMMISSIONING,UPPERTHORPE MEDICAL CENTRE,34381456,"-1,742.53",PARTIG,S6 3FT
Department of Health,NHS Sheffield CCG,10/31/2020,C&M-GMS Prem Actual Rent,PRC DELEGATED CO-COMMISSIONING,UPPERTHORPE MEDICAL CENTRE,34381456,"-29,475.30",RENT,S6 3FT
Department of Health,NHS Sheffield CCG,10/31/2020,C&M-GMS Prem Rates,PRC DELEGATED CO-COMMISSIONING,UPPERTHORPE MEDICAL CENTRE,34381456,"-1,354.70",RANDR,S6 3FT
Department of Health,NHS Sheffield CCG,10/31/2020,C&M-GMS Cost of Drugs -Prescribing,LOCAL ENHANCED SERVICES,UPPERTHORPE MEDICAL CENTRE,34381457,"2,304.72",DRGP,S6 3FT
Department of Health,NHS Sheffield CCG,10/31/2020,C&M-GMS Global Sum,PRC DELEGATED CO-COMMISSIONING,UPPERTHORPE MEDICAL CENTRE,34381457,"89,693.58",GSUMG,S6 3FT
Department of Health,NHS Sheffield CCG,10/31/2020,C&M-GMS PCN DES Participation,PRC DELEGATED CO-COMMISSIONING,UPPERTHORPE MEDICAL CENTRE,34381457,"3,488.03",PARTIG,S6 3FT
Department of Health,NHS Sheffield CCG,10/31/2020,C&M-GMS Prem Notional Rent,PRC DELEGATED CO-COMMISSIONING,UPPERTHORPE MEDICAL CENTRE,34381457,"2,547.83",NRENT,S6 3FT
Department of Health,NHS Sheffield CCG,10/31/2020,C&M-GMS Prem Rates,PRC DELEGATED CO-COMMISSIONING,UPPERTHORPE MEDICAL CENTRE,34381457,"1,265.20",RANDR,S6 3FT
Department of Health,NHS Sheffield CCG,10/31/2020,C&M-GMS Prem Water Rates,PRC DELEGATED CO-COMMISSIONING,UPPERTHORPE MEDICAL CENTRE,34381457,90.57,RAMW,S6 3FT
Department of Health,NHS Sheffield CCG,10/31/2020,C&M-GMS Prof Fees Prescribing,PRC DELEGATED CO-COMMISSIONING,UPPERTHORPE MEDICAL CENTRE,34381457,149.69,DRGPPF,S6 3FT
Department of Health,NHS Sheffield CCG,10/31/2020,C&M-GMS QOF Aspiration,PRC DELEGATED CO-COMMISSIONING,UPPERTHORPE MEDICAL CENTRE,34381457,"9,300.36",QUASPG,S6 3FT
Department of Health,NHS Sheffield CCG,10/31/2020,C&M-PMS Contract Value,PRC DELEGATED CO-COMMISSIONING,UPWELL STREET SURGERY,34166870,"37,024.50",BABALP,S4 8AN
Department of Health,NHS Sheffield CCG,10/31/2020,C&M-PMS Funding Differential Review,PRC DELEGATED CO-COMMISSIONING,UPWELL STREET SURGERY,34166870,911.19,ZFUNFP,S4 8AN
Department of Health,NHS Sheffield CCG,10/31/2020,C&M-PMS Out of Hours Opt Outs,PRC DELEGATED CO-COMMISSIONING,UPWELL STREET SURGERY,34166870,27.54,APMOOH,S4 8AN
Department of Health,NHS Sheffield CCG,10/31/2020,C&M-PMS PCN DES Participation,PRC DELEGATED CO-COMMISSIONING,UPWELL STREET SURGERY,34166870,"1,375.79",PARTIP,S4 8AN
Department of Health,NHS Sheffield CCG,10/31/2020,C&M-PMS Prem Notional Rent,PRC DELEGATED CO-COMMISSIONING,UPWELL STREET SURGERY,34166870,"8,137.50",NRENT,S4 8AN
Department of Health,NHS Sheffield CCG,10/31/2020,C&M-PMS Prem Rates,PRC DELEGATED CO-COMMISSIONING,UPWELL STREET SURGERY,34166870,"1,362.00",RANDRP,S4 8AN
Department of Health,NHS Sheffield CCG,10/31/2020,C&M-PMS QOF Aspiration,PRC DELEGATED CO-COMMISSIONING,UPWELL STREET SURGERY,34166870,"3,919.87",QUASPP,S4 8AN
Department of Health,NHS Sheffield CCG,10/31/2020,C&M-PMS Contract Value,PRC DELEGATED CO-COMMISSIONING,VALLEY MEDICAL CENTRE,34166872,"80,005.18",BABALP,S36 1BX
Department of Health,NHS Sheffield CCG,10/31/2020,C&M-PMS DES Extended Hours Access,PRC DELEGATED CO-COMMISSIONING,VALLEY MEDICAL CENTRE,34166872,"5,018.52",EXTHDP,S36 1BX
Department of Health,NHS Sheffield CCG,10/31/2020,C&M-PMS Funding Differential Review,PRC DELEGATED CO-COMMISSIONING,VALLEY MEDICAL CENTRE,34166872,"1,519.02",ZFUNFP,S36 1BX
Department of Health,NHS Sheffield CCG,10/31/2020,C&M-PMS PCN DES Clinical Director,PRC DELEGATED CO-COMMISSIONING,VALLEY MEDICAL CENTRE,34166872,"2,493.70",CLINDP,S36 1BX
Department of Health,NHS Sheffield CCG,10/31/2020,C&M-PMS PCN DES PCN support,LOCAL ENHANCED SERVICES,VALLEY MEDICAL CENTRE,34166872,"5,188.00",PCNSUP,S36 1BX
Department of Health,NHS Sheffield CCG,10/31/2020,C&M-PMS PCN DES Participation,PRC DELEGATED CO-COMMISSIONING,VALLEY MEDICAL CENTRE,34166872,"3,006.56",PARTIP,S36 1BX
Department of Health,NHS Sheffield CCG,10/31/2020,C&M-PMS PCO Locum Adop/Pat/Mat,PRC DELEGATED CO-COMMISSIONING,VALLEY MEDICAL CENTRE,34166872,"7,882.48",SICKC,S36 1BX
Department of Health,NHS Sheffield CCG,10/31/2020,C&M-PMS Prem Rates,PRC DELEGATED CO-COMMISSIONING,VALLEY MEDICAL CENTRE,34166872,"1,784.00",RANDRP,S36 1BX
Department of Health,NHS Sheffield CCG,10/31/2020,C&M-PMS Prem Water Rates,PRC DELEGATED CO-COMMISSIONING,VALLEY MEDICAL CENTRE,34166872,167.36,RAMWP,S36 1BX
Department of Health,NHS Sheffield CCG,10/31/2020,C&M-PMS QOF Aspiration,PRC DELEGATED CO-COMMISSIONING,VALLEY MEDICAL CENTRE,34166872,"9,062.68",QUASPP,S36 1BX
Department of Health,NHS Sheffield CCG,10/31/2020,Cont Care-Physical Disab (<65),CHC ADULT FULLY FUNDED,VALORUM CARE LTD,34158000,"85,383.59",CHC SCHEDULE OCTOBER 2020 - Valorum Care Limited (Mickley Hall),LS19 7RW
Department of Health,NHS Sheffield CCG,10/31/2020,C&M-GMS Cost of Drugs -Prescribing,LOCAL ENHANCED SERVICES,WALKLEY HOUSE MEDICAL CENTRE,34381462,617.34,DRGP,S6 3TN
Department of Health,NHS Sheffield CCG,10/31/2020,C&M-GMS Global Sum,PRC DELEGATED CO-COMMISSIONING,WALKLEY HOUSE MEDICAL CENTRE,34381462,"90,751.63",GSUMG,S6 3TN
Department of Health,NHS Sheffield CCG,10/31/2020,C&M-GMS PCN DES Participation,PRC DELEGATED CO-COMMISSIONING,WALKLEY HOUSE MEDICAL CENTRE,34381462,"3,522.09",PARTIG,S6 3TN
Department of Health,NHS Sheffield CCG,10/31/2020,C&M-GMS Prem Notional Rent,PRC DELEGATED CO-COMMISSIONING,WALKLEY HOUSE MEDICAL CENTRE,34381462,"5,635.50",NRENT,S6 3TN
Department of Health,NHS Sheffield CCG,10/31/2020,C&M-GMS Prem Rates,PRC DELEGATED CO-COMMISSIONING,WALKLEY HOUSE MEDICAL CENTRE,34381462,"2,517.00",RANDR,S6 3TN
Department of Health,NHS Sheffield CCG,10/31/2020,C&M-GMS Prof Fees Prescribing,PRC DELEGATED CO-COMMISSIONING,WALKLEY HOUSE MEDICAL CENTRE,34381462,64.49,DRGPPF,S6 3TN
Department of Health,NHS Sheffield CCG,10/31/2020,C&M-GMS QOF Aspiration,PRC DELEGATED CO-COMMISSIONING,WALKLEY HOUSE MEDICAL CENTRE,34381462,"8,644.85",QUASPG,S6 3TN
Department of Health,NHS Sheffield CCG,10/31/2020,C&M-GMS Cost of Drugs -Prescribing,LOCAL ENHANCED SERVICES,WHITE HOUSE SURGERY SHEFFIELD,34381460,274.23,DRGP,S2 1SL
Department of Health,NHS Sheffield CCG,10/31/2020,C&M-GMS DES Learn Dsblty Hlth Chk,PRC DELEGATED CO-COMMISSIONING,WHITE HOUSE SURGERY SHEFFIELD,34381460,840.00,LEARNG,S2 1SL
Department of Health,NHS Sheffield CCG,10/31/2020,C&M-GMS Global Sum,PRC DELEGATED CO-COMMISSIONING,WHITE HOUSE SURGERY SHEFFIELD,34381460,"55,359.44",GSUMG,S2 1SL
Department of Health,NHS Sheffield CCG,10/31/2020,C&M-GMS PCN DES Participation,PRC DELEGATED CO-COMMISSIONING,WHITE HOUSE SURGERY SHEFFIELD,34381460,"2,112.47",PARTIG,S2 1SL
Department of Health,NHS Sheffield CCG,10/31/2020,C&M-GMS Prem Notional Rent,PRC DELEGATED CO-COMMISSIONING,WHITE HOUSE SURGERY SHEFFIELD,34381460,"9,412.50",NRENT,S2 1SL
Department of Health,NHS Sheffield CCG,10/31/2020,C&M-GMS Prem Rates,PRC DELEGATED CO-COMMISSIONING,WHITE HOUSE SURGERY SHEFFIELD,34381460,"2,483.00",RANDR,S2 1SL
Department of Health,NHS Sheffield CCG,10/31/2020,C&M-GMS Prof Fees Prescribing,PRC DELEGATED CO-COMMISSIONING,WHITE HOUSE SURGERY SHEFFIELD,34381460,76.00,DRGPPF,S2 1SL
Department of Health,NHS Sheffield CCG,10/31/2020,C&M-GMS QOF Aspiration,PRC DELEGATED CO-COMMISSIONING,WHITE HOUSE SURGERY SHEFFIELD,34381460,"6,054.80",QUASPG,S2 1SL
Department of Health,NHS Sheffield CCG,10/31/2020,Cont Care-Physical Disab (<65),CHC ADULT FULLY FUNDED,WILLOWBECK HEALTH CARE LTD,34157983,"147,509.89",CHC SCHEDULE OCTOBER 2020 - Willowbeck Health Care Ltd (Exemplar HC),S4 8AR
Department of Health,NHS Sheffield CCG,10/31/2020,C&M-PMS Contract Value,PRC DELEGATED CO-COMMISSIONING,WINCOBANK MEDICAL CENTRE,34166876,"63,698.76",BABALP,S9 1DJ
Department of Health,NHS Sheffield CCG,10/31/2020,C&M-PMS Funding Differential Review,PRC DELEGATED CO-COMMISSIONING,WINCOBANK MEDICAL CENTRE,34166876,"1,151.96",ZFUNFP,S9 1DJ
Department of Health,NHS Sheffield CCG,10/31/2020,C&M-PMS Out of Hours Opt Outs,PRC DELEGATED CO-COMMISSIONING,WINCOBANK MEDICAL CENTRE,34166876,12.27,APMOOH,S9 1DJ
Department of Health,NHS Sheffield CCG,10/31/2020,C&M-PMS PCN DES Participation,PRC DELEGATED CO-COMMISSIONING,WINCOBANK MEDICAL CENTRE,34166876,"2,384.65",PARTIP,S9 1DJ
Department of Health,NHS Sheffield CCG,10/31/2020,C&M-PMS Prem Healthcentre Rent,PRC DELEGATED CO-COMMISSIONING,WINCOBANK MEDICAL CENTRE,34166876,"46,340.33",HEALTH,S9 1DJ
Department of Health,NHS Sheffield CCG,10/31/2020,C&M-PMS QOF Aspiration,PRC DELEGATED CO-COMMISSIONING,WINCOBANK MEDICAL CENTRE,34166876,"5,972.45",QUASPP,S9 1DJ
Department of Health,NHS Sheffield CCG,10/31/2020,C&M-PMS Contract Value,PRC DELEGATED CO-COMMISSIONING,WOODHOUSE HEALTH CENTRE,34166873,"-1,714.09",BABALP,S13 7LY
Department of Health,NHS Sheffield CCG,10/31/2020,C&M-PMS GP Statutory Levy,PRC DELEGATED CO-COMMISSIONING,WOODHOUSE HEALTH CENTRE,34166873,-425.64,STATL,S13 7LY
Department of Health,NHS Sheffield CCG,10/31/2020,C&M-PMS Out of Hours Opt Outs,PRC DELEGATED CO-COMMISSIONING,WOODHOUSE HEALTH CENTRE,34166873,"-4,845.65",APMOOH,S13 7LY
Department of Health,NHS Sheffield CCG,10/31/2020,C&M-PMS PCN DES Participation,PRC DELEGATED CO-COMMISSIONING,WOODHOUSE HEALTH CENTRE,34166873,"-1,913.91",PARTIP,S13 7LY
Department of Health,NHS Sheffield CCG,10/31/2020,C&M-PMS Contract Value,PRC DELEGATED CO-COMMISSIONING,WOODHOUSE HEALTH CENTRE,34166874,"101,795.51",BABALP,S13 7LY
Department of Health,NHS Sheffield CCG,10/31/2020,C&M-PMS Funding Differential Review,PRC DELEGATED CO-COMMISSIONING,WOODHOUSE HEALTH CENTRE,34166874,"2,095.91",ZFUNFP,S13 7LY
Department of Health,NHS Sheffield CCG,10/31/2020,C&M-PMS Out of Hours Opt Outs,PRC DELEGATED CO-COMMISSIONING,WOODHOUSE HEALTH CENTRE,34166874,80.74,APMOOH,S13 7LY
Department of Health,NHS Sheffield CCG,10/31/2020,C&M-PMS PCN DES Participation,PRC DELEGATED CO-COMMISSIONING,WOODHOUSE HEALTH CENTRE,34166874,"3,831.08",PARTIP,S13 7LY
Department of Health,NHS Sheffield CCG,10/31/2020,C&M-PMS PCO Other,PRC DELEGATED CO-COMMISSIONING,WOODHOUSE HEALTH CENTRE,34166874,751.30,CQCRP,S13 7LY
Department of Health,NHS Sheffield CCG,10/31/2020,C&M-PMS Prem Notional Rent,PRC DELEGATED CO-COMMISSIONING,WOODHOUSE HEALTH CENTRE,34166874,"6,338.58",NRENT,S13 7LY
Department of Health,NHS Sheffield CCG,10/31/2020,C&M-PMS Prem Rates,PRC DELEGATED CO-COMMISSIONING,WOODHOUSE HEALTH CENTRE,34166874,286.27,RANDRP,S13 7LY
Department of Health,NHS Sheffield CCG,10/31/2020,C&M-PMS QOF Aspiration,PRC DELEGATED CO-COMMISSIONING,WOODHOUSE HEALTH CENTRE,34166874,"13,397.77",QUASPP,S13 7LY
Department of Health,NHS Sheffield CCG,10/31/2020,C&M-APMS PCO Locum Sickness,PRC DELEGATED CO-COMMISSIONING,WOODSEATS MEDICAL CENTRE,34187743,"7,881.84",SICKSA,S8 0SH
Department of Health,NHS Sheffield CCG,10/31/2020,C&M-PMS Contract Value,PRC DELEGATED CO-COMMISSIONING,WOODSEATS MEDICAL CENTRE,34187743,"80,727.83",BABALP,S8 0SH
Department of Health,NHS Sheffield CCG,10/31/2020,C&M-PMS Funding Differential Review,PRC DELEGATED CO-COMMISSIONING,WOODSEATS MEDICAL CENTRE,34187743,"1,061.06",ZFUNFP,S8 0SH
Department of Health,NHS Sheffield CCG,10/31/2020,C&M-PMS Out of Hours Opt Outs,PRC DELEGATED CO-COMMISSIONING,WOODSEATS MEDICAL CENTRE,34187743,13.08,APMOOH,S8 0SH
Department of Health,NHS Sheffield CCG,10/31/2020,C&M-PMS PCN DES Participation,PRC DELEGATED CO-COMMISSIONING,WOODSEATS MEDICAL CENTRE,34187743,"3,012.16",PARTIP,S8 0SH
Department of Health,NHS Sheffield CCG,10/31/2020,C&M-PMS PCO Locum Adop/Pat/Mat,PRC DELEGATED CO-COMMISSIONING,WOODSEATS MEDICAL CENTRE,34187743,411.42,SICKC,S8 0SH
Department of Health,NHS Sheffield CCG,10/31/2020,C&M-PMS PCO Other,PRC DELEGATED CO-COMMISSIONING,WOODSEATS MEDICAL CENTRE,34187743,645.70,CQCRP,S8 0SH
Department of Health,NHS Sheffield CCG,10/31/2020,C&M-PMS Prem Notional Rent,PRC DELEGATED CO-COMMISSIONING,WOODSEATS MEDICAL CENTRE,34187743,"11,666.67",NRENT,S8 0SH
Department of Health,NHS Sheffield CCG,10/31/2020,C&M-PMS Prem Rates,PRC DELEGATED CO-COMMISSIONING,WOODSEATS MEDICAL CENTRE,34187743,"3,149.00",RANDRP,S8 0SH
Department of Health,NHS Sheffield CCG,10/31/2020,C&M-PMS Prem Water Rates,PRC DELEGATED CO-COMMISSIONING,WOODSEATS MEDICAL CENTRE,34187743,389.76,RAMWP,S8 0SH
Department of Health,NHS Sheffield CCG,10/31/2020,C&M-PMS QOF Aspiration,PRC DELEGATED CO-COMMISSIONING,WOODSEATS MEDICAL CENTRE,34187743,"8,588.98",QUASPP,S8 0SH
Department of Health,NHS Sheffield CCG,10/31/2020,Hcare Srv Rec NHS Trust-Contract Baseline,AMBULANCE SERVICES,YORKSHIRE AMBULANCE SERVICE NHS TRUST,34236831,"2,402,179.62",,WF2 0XQ
Department of Health,NHS Sheffield CCG,10/31/2020,Hcare Srv Rec NHS Trust-Non Contract,PATIENT TRANSPORT,YORKSHIRE AMBULANCE SERVICE NHS TRUST,34352698,"14,265.60",https://nww.einvoice-prod.sbs.nhs.uk:8179/invoicepdf/b58a4075-d228-57e2-92e6-8ac9e35e526a,WF2 0XQ
Department of Health,NHS Sheffield CCG,10/31/2020,Hcare Srv Rec NHS Trust-Non Contract,PATIENT TRANSPORT,YORKSHIRE AMBULANCE SERVICE NHS TRUST,34352698,"12,647.60",,WF2 0XQ
Department of Health,NHS Sheffield CCG,10/31/2020,Hcare Srv Rec NHS Trust-Non Contract,PATIENT TRANSPORT,YORKSHIRE AMBULANCE SERVICE NHS TRUST,34352699,"14,482.00",https://nww.einvoice-prod.sbs.nhs.uk:8179/invoicepdf/5bc100f9-c131-52a3-9946-6a6647075203,WF2 0XQ
Department of Health,NHS Sheffield CCG,10/31/2020,Hcare Srv Rec NHS Trust-Non Contract,PATIENT TRANSPORT,YORKSHIRE AMBULANCE SERVICE NHS TRUST,34352699,"16,117.60",,WF2 0XQ
Department of Health,NHS Sheffield CCG,10/31/2020,Hcare Srv Rec NHS Trust-Non Contract,PATIENT TRANSPORT,YORKSHIRE AMBULANCE SERVICE NHS TRUST,34352703,"14,546.40",https://nww.einvoice-prod.sbs.nhs.uk:8179/invoicepdf/ff67a832-9d70-54e2-8988-d7b211c23ca3,WF2 0XQ
Department of Health,NHS Sheffield CCG,10/31/2020,Hcare Srv Rec NHS Trust-Non Contract,PATIENT TRANSPORT,YORKSHIRE AMBULANCE SERVICE NHS TRUST,34352703,"13,396.00",,WF2 0XQ
Department of Health,NHS Sheffield CCG,10/31/2020,Hcare Srv Rec NHS Trust-Non Contract,PATIENT TRANSPORT,YORKSHIRE AMBULANCE SERVICE NHS TRUST,34352704,"36,716.80",,WF2 0XQ
Department of Health,NHS Sheffield CCG,10/31/2020,Hcare Srv Rec NHS Trust-Non Contract,PATIENT TRANSPORT,YORKSHIRE AMBULANCE SERVICE NHS TRUST,34352705,"36,408.00",,WF2 0XQ
Department of Health,NHS Sheffield CCG,10/31/2020,Hcare Srv Rec NHS Trust-Non Contract,PATIENT TRANSPORT,YORKSHIRE AMBULANCE SERVICE NHS TRUST,34352708,"11,494.80",https://nww.einvoice-prod.sbs.nhs.uk:8179/invoicepdf/9c8a71ed-474b-54cb-a85a-649d2bbf5315,WF2 0XQ
Department of Health,NHS Sheffield CCG,10/31/2020,Hcare Srv Rec NHS Trust-Non Contract,PATIENT TRANSPORT,YORKSHIRE AMBULANCE SERVICE NHS TRUST,34352708,"19,344.00",,WF2 0XQ
Department of Health,NHS Sheffield CCG,10/31/2020,Hcare Srv Rec NHS Trust-Non Contract,PATIENT TRANSPORT,YORKSHIRE AMBULANCE SERVICE NHS TRUST,34352709,"17,233.20",https://nww.einvoice-prod.sbs.nhs.uk:8179/invoicepdf/99817ae1-c1b9-58be-a9c7-ed5deb33b59d,WF2 0XQ
Department of Health,NHS Sheffield CCG,10/31/2020,Hcare Srv Rec NHS Trust-Non Contract,PATIENT TRANSPORT,YORKSHIRE AMBULANCE SERVICE NHS TRUST,34352709,"14,172.00",,WF2 0XQ
Department of Health,NHS Sheffield CCG,10/31/2020,Hcare Srv Rec NHS Trust-Non Contract,PATIENT TRANSPORT,YORKSHIRE AMBULANCE SERVICE NHS TRUST,34352711,"15,494.80",https://nww.einvoice-prod.sbs.nhs.uk:8179/invoicepdf/3944e2ef-1795-58b6-9652-f4c338e113fd,WF2 0XQ
Department of Health,NHS Sheffield CCG,10/31/2020,Hcare Srv Rec NHS Trust-Non Contract,PATIENT TRANSPORT,YORKSHIRE AMBULANCE SERVICE NHS TRUST,34352711,"11,706.40",,WF2 0XQ
Department of Health,NHS Sheffield CCG,10/31/2020,Hcare Srv Rec NHS Trust-Non Contract,PATIENT TRANSPORT,YORKSHIRE AMBULANCE SERVICE NHS TRUST,34352713,"11,327.60",https://nww.einvoice-prod.sbs.nhs.uk:8179/invoicepdf/3f551cec-100a-5b26-9880-805b29a0b9fb,WF2 0XQ
Department of Health,NHS Sheffield CCG,10/31/2020,Hcare Srv Rec NHS Trust-Non Contract,PATIENT TRANSPORT,YORKSHIRE AMBULANCE SERVICE NHS TRUST,34352713,"19,702.40",,WF2 0XQ
Department of Health,NHS Sheffield CCG,10/31/2020,Hcare Srv Rec NHS Trust-Non Contract,PATIENT TRANSPORT,YORKSHIRE AMBULANCE SERVICE NHS TRUST,34352714,"16,691.20",https://nww.einvoice-prod.sbs.nhs.uk:8179/invoicepdf/e245456a-2132-5f48-9701-ebd5975e4909,WF2 0XQ
Department of Health,NHS Sheffield CCG,10/31/2020,Hcare Srv Rec NHS Trust-Non Contract,PATIENT TRANSPORT,YORKSHIRE AMBULANCE SERVICE NHS TRUST,34352714,"8,974.40",,WF2 0XQ
Department of Health,NHS Sheffield CCG,10/31/2020,Hcare Srv Rec NHS Trust-Non Contract,PATIENT TRANSPORT,YORKSHIRE AMBULANCE SERVICE NHS TRUST,34352715,"14,572.00",https://nww.einvoice-prod.sbs.nhs.uk:8179/invoicepdf/57aa7e24-8478-54c7-b199-ce30f9924300,WF2 0XQ
Department of Health,NHS Sheffield CCG,10/31/2020,Hcare Srv Rec NHS Trust-Non Contract,PATIENT TRANSPORT,YORKSHIRE AMBULANCE SERVICE NHS TRUST,34352715,"12,540.80",,WF2 0XQ
Department of Health,NHS Sheffield CCG,10/31/2020,Hcare Srv Rec NHS Trust-Non Contract,PATIENT TRANSPORT,YORKSHIRE AMBULANCE SERVICE NHS TRUST,34352723,"-30,599.60",https://nww.einvoice-prod.sbs.nhs.uk:8179/invoicepdf/55ba17dd-8992-5712-a089-d20cb5d7b1fe,WF2 0XQ
Department of Health,NHS Sheffield CCG,10/31/2020,Hcare Srv Rec NHS Trust-Non Contract,PATIENT TRANSPORT,YORKSHIRE AMBULANCE SERVICE NHS TRUST,34352725,"-26,913.20",https://nww.einvoice-prod.sbs.nhs.uk:8179/invoicepdf/90b1d098-88bd-5abe-b7d8-0f17eee4fcdf,WF2 0XQ
Department of Health,NHS Sheffield CCG,10/31/2020,Hcare Srv Rec NHS Trust-Non Contract,PATIENT TRANSPORT,YORKSHIRE AMBULANCE SERVICE NHS TRUST,34352728,"-27,942.40",https://nww.einvoice-prod.sbs.nhs.uk:8179/invoicepdf/9ff43022-41ce-52e2-8559-c9bc8defd442,WF2 0XQ
Department of Health,NHS Sheffield CCG,10/31/2020,Hcare Srv Rec NHS Trust-Non Contract,PATIENT TRANSPORT,YORKSHIRE AMBULANCE SERVICE NHS TRUST,34352729,"-36,716.80",https://nww.einvoice-prod.sbs.nhs.uk:8179/invoicepdf/1a895c28-f6ff-5155-98ad-437780a1ebb7,WF2 0XQ
Department of Health,NHS Sheffield CCG,10/31/2020,Hcare Srv Rec NHS Trust-Non Contract,PATIENT TRANSPORT,YORKSHIRE AMBULANCE SERVICE NHS TRUST,34352731,"-36,408.00",https://nww.einvoice-prod.sbs.nhs.uk:8179/invoicepdf/d1a5f59b-d5b0-5eef-b60b-ea846d0652c3,WF2 0XQ
